Departmental Area,Entity,Payment Date,Expense type,Expense Area,Supplier Name,Payment Reference, Invoice Distribution Amount ,Description,Supplier Type,Expenditure Type,,
UK Statistics Family,Office for National Statistics,02/06/2021,EXP - PURCHASE OF GOODS/SERVICES -  NON IT CONTRACTUAL PAYMENTS,Data As A Service,NHS Digital,202482," 40,704.00 ",Statistical Services,Large,Programme Expenditure,,
UK Statistics Family,Office for National Statistics,02/06/2021,Exp - Purchase Of Goods/Services - Incentive Payments,Survey Management,Park Retail Ltd,202486," 205,210.84 ",Survey Response Incentive Vouchers,Large,Programme Expenditure,,
UK Statistics Family,Office for National Statistics,02/06/2021,Exp - Purchase Of Goods/Services - Incentive Payments,Survey Management,Park Retail Ltd,202486,"-42,592.29 ",Survey Response Incentive Vouchers,Large,Programme Expenditure,,
UK Statistics Family,Office for National Statistics,02/06/2021,Exp - Purchase Of Goods/Services - Incentive Payments,Survey Management,Park Retail Ltd,202486," 12,468.30 ",Survey Response Incentive Vouchers,Large,Programme Expenditure,,
UK Statistics Family,Office for National Statistics,02/06/2021,Exp - Purchase Of Goods/Services - Incentive Payments,Survey Management,Park Retail Ltd,202486," 4,904.51 ",Survey Response Incentive Vouchers,Large,Programme Expenditure,,
UK Statistics Family,Office for National Statistics,02/06/2021,Exp - Purchase Of Goods/Services - Incentive Payments,Survey Management,Park Retail Ltd,202486," 3,799.64 ",Survey Response Incentive Vouchers,Large,Programme Expenditure,,
UK Statistics Family,Office for National Statistics,02/06/2021,Exp - Purchase Of Goods/Services - Incentive Payments,Survey Management,Park Retail Ltd,202486,"-3,093.02 ",Survey Response Incentive Vouchers,Large,Programme Expenditure,,
UK Statistics Family,Office for National Statistics,02/06/2021,FM Contract Payments,Corporate Centre,Vinci Construction UK Limited,202488," 108,260.50 ",Facilities Mangement Services,Large,Programme Expenditure,,
UK Statistics Family,Office for National Statistics,02/06/2021,"ICT Outsourcing, Maintenance And Support",IT Operations,Scc,202492," 266,542.08 ",Software Licenses,Large,Programme Expenditure,,
UK Statistics Family,Office for National Statistics,02/06/2021,Travel And Subsistence,Corporate Centre,Corporate Travel Management ,202497," 30,149.84 ",Travel and Accommodation,SME,Programme Expenditure,,
UK Statistics Family,Office for National Statistics,02/06/2021,Postage,Survey Processing Centre,DHL Parcel Ltd,202499," 29,491.19 ",Postage,Large,Programme Expenditure,,
UK Statistics Family,Office for National Statistics,02/06/2021,Surveys,Interview Management IPS,Nisra,202502," 66,000.00 ",Statistical Services,Large,Programme Expenditure,,
UK Statistics Family,Office for National Statistics,02/06/2021,Surveys,Social Surveys Division,Nisra,202502," 102,768.10 ",Statistical Services,Large,Programme Expenditure,,
UK Statistics Family,Office for National Statistics,02/06/2021,Exp - Purchase Of Goods And Services Consultants,Productivity Research And Professional Development,Niesr,202503," 384,378.00 ",Statistical Services,SME,Programme Expenditure,,
UK Statistics Family,Office for National Statistics,02/06/2021,Exp - Purchase Of Goods/Services - Contractors,Testing,Certes Computing Ltd,202504," 2,049.60 ",Information Management Services,SME,Programme Expenditure,,
UK Statistics Family,Office for National Statistics,02/06/2021,Exp - Purchase Of Goods/Services - Contractors,Tech Delivery Legacy Sp,Certes Computing Ltd,202504," 5,879.84 ",Information Management Services,SME,Programme Expenditure,,
UK Statistics Family,Office for National Statistics,02/06/2021,Exp - Purchase Of Goods/Services - Contractors,Tech Delivery Data As A Platform,Certes Computing Ltd,202504," 15,211.93 ",Information Management Services,SME,Programme Expenditure,,
UK Statistics Family,Office for National Statistics,02/06/2021,Exp - Purchase Of Goods/Services - Contractors,Digital Delivery,Certes Computing Ltd,202504," 6,480.00 ",Information Management Services,SME,Programme Expenditure,,
UK Statistics Family,Office for National Statistics,02/06/2021,Exp - Purchase Of Goods/Services - Contractors,Social Surveys Division,Certes Computing Ltd,202504," 14,398.56 ",Information Management Services,SME,Programme Expenditure,,
UK Statistics Family,Office for National Statistics,02/06/2021,Exp - Purchase Of Goods/Services - Contractors,Business Architecture,La International,202505," 8,489.46 ",Information Management Services,SME,Programme Expenditure,,
UK Statistics Family,Office for National Statistics,02/06/2021,Exp - Purchase Of Goods/Services - Contractors,Testing,La International,202505," 29,859.82 ",Information Management Services,SME,Programme Expenditure,,
UK Statistics Family,Office for National Statistics,02/06/2021,Exp - Purchase Of Goods/Services - Contractors,Testing,La International,202505," 9,958.62 ",Information Management Services,SME,Programme Expenditure,,
UK Statistics Family,Office for National Statistics,02/06/2021,Exp - Purchase Of Goods/Services - Contractors,HALE,La International,202505," 4,344.75 ",Information Management Services,SME,Programme Expenditure,,
UK Statistics Family,Office for National Statistics,02/06/2021,Exp - Purchase Of Goods/Services - Contractors,Sustainability And Inequalities,La International,202505," 4,419.66 ",Information Management Services,SME,Programme Expenditure,,
UK Statistics Family,Office for National Statistics,02/06/2021,EXP - PURCHASE OF GOODS/SERVICES -  NON IT CONTRACTUAL PAYMENTS,Productivity Research And Professional Development,La International,202505," 14,737.84 ",Information Management Services,SME,Programme Expenditure,,
UK Statistics Family,Office for National Statistics,02/06/2021,Exp - Purchase Of Goods And Services Consultants,Security Operations,La International,202505," 5,766.98 ",Information Management Services,SME,Programme Expenditure,,
UK Statistics Family,Office for National Statistics,02/06/2021,Exp - Purchase Of Goods/Services - Contractors,Data Architecture,La International,202505," 2,870.64 ",Information Management Services,SME,Programme Expenditure,,
UK Statistics Family,Office for National Statistics,02/06/2021,Exp - Purchase Of Goods/Services - Contractors,Data Architecture,La International,202505," 6,343.60 ",Information Management Services,SME,Programme Expenditure,,
UK Statistics Family,Office for National Statistics,02/06/2021,Exp - Purchase Of Goods/Services - Contractors,Data Architecture,La International,202505," 25,137.42 ",Information Management Services,SME,Programme Expenditure,,
UK Statistics Family,Office for National Statistics,02/06/2021,Exp - Purchase Of Goods/Services - Contractors,Data Architecture,La International,202505," 6,343.59 ",Information Management Services,SME,Programme Expenditure,,
UK Statistics Family,Office for National Statistics,02/06/2021,Exp - Purchase Of Goods/Services - Contractors,CLOUD ARCHITECTURE,La International,202505," 6,535.86 ",Information Management Services,SME,Programme Expenditure,,
UK Statistics Family,Office for National Statistics,02/06/2021,Exp - Purchase Of Goods/Services - Contractors,Tech Delivery Legacy Sp,La International,202505," 10,572.66 ",Information Management Services,SME,Programme Expenditure,,
UK Statistics Family,Office for National Statistics,02/06/2021,Exp - Purchase Of Goods/Services - Contractors,Tech Delivery Legacy Sp,La International,202505," 3,524.22 ",Information Management Services,SME,Programme Expenditure,,
UK Statistics Family,Office for National Statistics,02/06/2021,Exp - Purchase Of Goods/Services - Contractors,Tech Delivery Data As A Platform,La International,202505," 3,203.88 ",Information Management Services,SME,Programme Expenditure,,
UK Statistics Family,Office for National Statistics,02/06/2021,Exp - Purchase Of Goods/Services - Contractors,IT Applications,La International,202505," 13,308.83 ",Information Management Services,SME,Programme Expenditure,,
UK Statistics Family,Office for National Statistics,02/06/2021,Exp - Purchase Of Goods/Services - Contractors,Digital Delivery,La International,202505," 20,632.94 ",Information Management Services,SME,Programme Expenditure,,
UK Statistics Family,Office for National Statistics,02/06/2021,Exp - Purchase Of Goods/Services - Contractors,Digital Delivery,La International,202505," 14,329.34 ",Information Management Services,SME,Programme Expenditure,,
UK Statistics Family,Office for National Statistics,02/06/2021,Exp - Purchase Of Goods/Services - Contractors,Digital Delivery,La International,202505," 14,225.10 ",Information Management Services,SME,Programme Expenditure,,
UK Statistics Family,Office for National Statistics,02/06/2021,Exp - Purchase Of Goods/Services - Contractors,Digital Delivery,La International,202505," 9,336.60 ",Information Management Services,SME,Programme Expenditure,,
UK Statistics Family,Office for National Statistics,02/06/2021,Exp - Purchase Of Goods/Services - Contractors,Data As A Service,La International,202505, 800.96 ,Information Management Services,SME,Programme Expenditure,,
UK Statistics Family,Office for National Statistics,02/06/2021,Exp - Purchase Of Goods/Services - Contractors,Data As A Service,La International,202505," 10,412.54 ",Information Management Services,SME,Programme Expenditure,,
UK Statistics Family,Office for National Statistics,02/06/2021,Exp - Short-Term Contract & Agency Staff - Full Cost,Social Survey Transformation Titchfield,La International,202505," 2,197.06 ",Information Management Services,SME,Programme Expenditure,,
UK Statistics Family,Office for National Statistics,02/06/2021,Exp - Purchase Of Goods/Services - Contractors,Social Survey Transformation Titchfield,La International,202505," 2,961.76 ",Information Management Services,SME,Programme Expenditure,,
UK Statistics Family,Office for National Statistics,02/06/2021,Exp - Purchase Of Goods And Services Consultants,Consultancy Management,Deloitte,202506," 367,702.80 ",Consultancy,Large,Programme Expenditure,,
UK Statistics Family,Office for National Statistics,02/06/2021,Exp - Purchase Of Goods/Services - Training & Development - Seminar & Conference Fees,Finance,Ernst & Young Llp,202507," 8,289.60 ",Training and Educational Services,Large,Programme Expenditure,,
UK Statistics Family,Office for National Statistics,02/06/2021,Training & Development,Learning And Capability,Ernst & Young Llp,202507," 34,830.00 ",Training and Educational Services,Large,Programme Expenditure,,
UK Statistics Family,Office for National Statistics,02/06/2021,Print and Post,Ask Business Services,APS Group,202517," 1,472.76 ",Print and Post Services,Large,Programme Expenditure,,
UK Statistics Family,Office for National Statistics,02/06/2021,Print and Post,Social Survey Transformation Newport,APS Group,202517," 53,026.87 ",Print and Post Services,Large,Programme Expenditure,,
UK Statistics Family,Office for National Statistics,02/06/2021,Print and Post,Social Survey Transformation Newport,APS Group,202517," 6,437.39 ",Print and Post Services,Large,Programme Expenditure,,
UK Statistics Family,Office for National Statistics,02/06/2021,Print and Post,Social Surveys Division,APS Group,202517," 15,467.60 ",Print and Post Services,Large,Programme Expenditure,,
UK Statistics Family,Office for National Statistics,02/06/2021,Telecoms,Data Collection Service,Cabinet Office,202518," 90,824.26 ",Information Management Services,Large,Programme Expenditure,,
UK Statistics Family,Office for National Statistics,02/06/2021,Other Goods And Services,Recruitment ,Cabinet Office,202518," 6,396.60 ",Civil Service Recruitment,Large,Programme Expenditure,,
UK Statistics Family,Office for National Statistics,02/06/2021,EXP - PURCHASE OF GOODS/SERVICES -  NON IT CONTRACTUAL PAYMENTS,Recruitment ,Cabinet Office,202518," 7,263.60 ",Civil Service Recruitment,Large,Programme Expenditure,,
UK Statistics Family,Office for National Statistics,02/06/2021,Recovery Of Secondee Costs,FAST STREAM RECHARGES - CABINET OFFICE,Cabinet Office,202518," 394,478.00 ",Fast Stream Programme Charges,Large,Programme Expenditure,,
UK Statistics Family,Office for National Statistics,02/06/2021,"ICT Outsourcing, Maintenance And Support",Researcher Support And Data Access ,Equiniti-TopLevel,202520," 47,424.00 ",Information Management Services,SME,Programme Expenditure,,
UK Statistics Family,Office for National Statistics,02/06/2021,Hosting,IT Operations,Equiniti-TopLevel,202520," 4,734.00 ",Information Management Services,SME,Programme Expenditure,,
UK Statistics Family,Office for National Statistics,02/06/2021,Exp - Purchase Of Goods/Services - Contractors,Business Architecture,Malikshaw Interim & Executive,202525," 5,918.18 ",Information Management Services,SME,Programme Expenditure,,
UK Statistics Family,Office for National Statistics,02/06/2021,Exp - Short-Term Contract & Agency Staff - Full Cost,Census CCS Data Collection,Malikshaw Interim & Executive,202525," 16,308.84 ",Information Management Services,SME,Programme Expenditure,,
UK Statistics Family,Office for National Statistics,02/06/2021,Exp - Short-Term Contract & Agency Staff - Full Cost,Census CCS Data Collection,Malikshaw Interim & Executive,202525," 10,121.52 ",Information Management Services,SME,Programme Expenditure,,
UK Statistics Family,Office for National Statistics,02/06/2021,Exp - Purchase Of Goods/Services - Contractors,Digital Publishing,Malikshaw Interim & Executive,202525," 11,688.79 ",Information Management Services,SME,Programme Expenditure,,
UK Statistics Family,Office for National Statistics,02/06/2021,Exp - Purchase Of Goods/Services - Contractors,Portfolio Delivery,Malikshaw Interim & Executive,202525," 7,200.00 ",Information Management Services,SME,Programme Expenditure,,
UK Statistics Family,Office for National Statistics,02/06/2021,Other Goods And Services,IT Operations,Malikshaw Interim & Executive,202525," 1,116.96 ",Information Management Services,SME,Programme Expenditure,,
UK Statistics Family,Office for National Statistics,02/06/2021,Exp - Purchase Of Goods/Services - Contractors,Digital Delivery,Malikshaw Interim & Executive,202525," 13,751.52 ",Information Management Services,SME,Programme Expenditure,,
UK Statistics Family,Office for National Statistics,02/06/2021,Exp - Purchase Of Goods/Services - Contractors,Digital Delivery,Malikshaw Interim & Executive,202525," 2,062.73 ",Information Management Services,SME,Programme Expenditure,,
UK Statistics Family,Office for National Statistics,02/06/2021,Exp - Purchase Of Goods/Services - Contractors,Digital Delivery,Malikshaw Interim & Executive,202525," 14,400.00 ",Information Management Services,SME,Programme Expenditure,,
UK Statistics Family,Office for National Statistics,02/06/2021,Exp - Purchase Of Goods/Services - Contractors,Data As A Service,Malikshaw Interim & Executive,202525," 14,341.20 ",Information Management Services,SME,Programme Expenditure,,
UK Statistics Family,Office for National Statistics,02/06/2021,Exp - Short-Term Contract & Agency Staff - Full Cost,Social Surveys Division,Malikshaw Interim & Executive,202525," 8,521.37 ",Information Management Services,SME,Programme Expenditure,,
UK Statistics Family,Office for National Statistics,02/06/2021,EXP - PURCHASE OF GOODS/SERVICES -  NON IT CONTRACTUAL PAYMENTS,Data Collection Service,Serco Ltd,202526," 7,163,315.93 ",Census Contact Centre,Large,Programme Expenditure,,
UK Statistics Family,Office for National Statistics,02/06/2021,EXP - PURCHASE OF GOODS/SERVICES -  NON IT CONTRACTUAL PAYMENTS,Covid Infection Survey,HH Associates Ltd,202528," 61,188.48 ",Print and Post Services,SME,Programme Expenditure,,
UK Statistics Family,Office for National Statistics,02/06/2021,Marketing & Media,Stakeholder Engagement And Comms,Manning Gottlieb,202531," 378,493.67 ",Marketing Services,Large,Programme Expenditure,,
UK Statistics Family,Office for National Statistics,02/06/2021,Marketing & Media,Stakeholder Engagement And Comms,Manning Gottlieb,202531," 729,673.00 ",Marketing Services,Large,Programme Expenditure,,
UK Statistics Family,Office for National Statistics,02/06/2021,Exp - Purchase Of Goods And Services Consultants,Consultancy Management,Bloom Procurement Services Ltd,202532," 95,599.27 ",Consultancy,Large,Programme Expenditure,,
UK Statistics Family,Office for National Statistics,02/06/2021,Other Professional Services,Policy Secretariat,Government Legal Department,202533," 4,320.91 ",Professional Legal Fees,Large,Programme Expenditure,,
UK Statistics Family,Office for National Statistics,02/06/2021,Other Professional Services,Policy Secretariat,Government Legal Department,202533, 420.00 ,Professional Legal Fees,Large,Programme Expenditure,,
UK Statistics Family,Office for National Statistics,02/06/2021,Other Professional Services,People Solutions,Government Legal Department,202533," 41,261.64 ",Professional Legal Fees,Large,Programme Expenditure,,
UK Statistics Family,Office for National Statistics,02/06/2021,Exp - Purchase Of Goods/Services - IT Contractual Services,IT Operations,Methods Business & Digital Technology Ltd,202535," 174,240.00 ",Information Management Services,Large,Programme Expenditure,,
UK Statistics Family,Office for National Statistics,02/06/2021,Exp - Short-Term Contract & Agency Staff - Full Cost,2023 CENSUS DATA TRANSFORMATION,Talent International,202536," 4,160.02 ",Information Management Services,SME,Programme Expenditure,,
UK Statistics Family,Office for National Statistics,02/06/2021,Exp - Purchase Of Goods/Services - Contractors,Business Architecture,Talent International,202536," 14,544.00 ",Information Management Services,SME,Programme Expenditure,,
UK Statistics Family,Office for National Statistics,02/06/2021,Exp - Short-Term Contract & Agency Staff - Full Cost,Census CCS Data Collection,Talent International,202536," 11,115.83 ",Information Management Services,SME,Programme Expenditure,,
UK Statistics Family,Office for National Statistics,02/06/2021,Exp - Short-Term Contract & Agency Staff - Full Cost,Census CCS Data Collection,Talent International,202536," 23,008.65 ",Information Management Services,SME,Programme Expenditure,,
UK Statistics Family,Office for National Statistics,02/06/2021,Exp - Purchase Of Goods/Services - Contractors,Digital Publishing,Talent International,202536," 16,800.00 ",Information Management Services,SME,Programme Expenditure,,
UK Statistics Family,Office for National Statistics,02/06/2021,Exp - Short-Term Contract & Agency Staff - Full Cost,Data Architecture,Talent International,202536," 9,029.19 ",Information Management Services,SME,Programme Expenditure,,
UK Statistics Family,Office for National Statistics,02/06/2021,Exp - Purchase Of Goods/Services - Contractors,Data Architecture,Talent International,202536," 2,448.00 ",Information Management Services,SME,Programme Expenditure,,
UK Statistics Family,Office for National Statistics,02/06/2021,Exp - Purchase Of Goods/Services - Contractors,Data Architecture,Talent International,202536," 5,508.00 ",Information Management Services,SME,Programme Expenditure,,
UK Statistics Family,Office for National Statistics,02/06/2021,Exp - Purchase Of Goods/Services - Contractors,CDIO UNGP,Talent International,202536," 17,940.00 ",Information Management Services,SME,Programme Expenditure,,
UK Statistics Family,Office for National Statistics,02/06/2021,Exp - Short-Term Contract & Agency Staff - Full Cost,Interviewer Management TU,Talent International,202536, 614.57 ,Information Management Services,SME,Programme Expenditure,,
UK Statistics Family,Office for National Statistics,02/06/2021,Exp - Purchase Of Goods/Services - Contractors,Stakeholder Engagement And Comms,Parity Resources Limited,202538," 2,629.30 ",Information Management Services,Large,Programme Expenditure,,
UK Statistics Family,Office for National Statistics,02/06/2021,Exp - Purchase Of Goods/Services - Contractors,Programme Delivery,Parity Resources Limited,202538," 6,621.00 ",Information Management Services,Large,Programme Expenditure,,
UK Statistics Family,Office for National Statistics,02/06/2021,Exp - Purchase Of Goods/Services - Contractors,Programme Support,Parity Resources Limited,202538," 5,388.84 ",Information Management Services,Large,Programme Expenditure,,
UK Statistics Family,Office for National Statistics,02/06/2021,Exp - Purchase Of Goods/Services - Contractors,Covid Infection Survey,Parity Resources Limited,202538," 5,400.00 ",Information Management Services,Large,Programme Expenditure,,
UK Statistics Family,Office for National Statistics,02/06/2021,Exp - Purchase Of Goods And Services Consultants,Digital Publishing,Parity Resources Limited,202538," 7,894.65 ",Information Management Services,Large,Programme Expenditure,,
UK Statistics Family,Office for National Statistics,02/06/2021,Exp - Purchase Of Goods And Services Consultants,Digital Publishing,Parity Resources Limited,202538," 2,153.09 ",Information Management Services,Large,Programme Expenditure,,
UK Statistics Family,Office for National Statistics,02/06/2021,Exp - Short-Term Contract & Agency Staff - Full Cost,International Trade And Transactions,Parity Resources Limited,202538, 811.81 ,Information Management Services,Large,Programme Expenditure,,
UK Statistics Family,Office for National Statistics,02/06/2021,Exp - Purchase Of Goods/Services - Contractors,International Trade And Transactions,Parity Resources Limited,202538," 16,880.40 ",Information Management Services,Large,Programme Expenditure,,
UK Statistics Family,Office for National Statistics,02/06/2021,Exp - Purchase Of Goods/Services - Contractors,Analysis Microdata And Engagement,Parity Resources Limited,202538, 740.11 ,Information Management Services,Large,Programme Expenditure,,
UK Statistics Family,Office for National Statistics,02/06/2021,Exp - Short-Term Contract & Agency Staff - Full Cost,Business Architecture Transformation And Statistical Strategy,Parity Resources Limited,202538, 732.60 ,Information Management Services,Large,Programme Expenditure,,
UK Statistics Family,Office for National Statistics,02/06/2021,Exp - Short-Term Contract & Agency Staff - Full Cost,Business Architecture Transformation And Statistical Strategy,Parity Resources Limited,202538," 2,814.24 ",Information Management Services,Large,Programme Expenditure,,
UK Statistics Family,Office for National Statistics,02/06/2021,Exp - Short-Term Contract & Agency Staff - Full Cost,Recruitment ,Parity Resources Limited,202538," 3,369.96 ",Information Management Services,Large,Programme Expenditure,,
UK Statistics Family,Office for National Statistics,02/06/2021,Exp - Short-Term Contract & Agency Staff - Full Cost,Data Architecture,Parity Resources Limited,202538," 3,369.96 ",Information Management Services,Large,Programme Expenditure,,
UK Statistics Family,Office for National Statistics,02/06/2021,Exp - Purchase Of Goods/Services - Contractors,Data Architecture,Parity Resources Limited,202538," 9,160.60 ",Information Management Services,Large,Programme Expenditure,,
UK Statistics Family,Office for National Statistics,02/06/2021,Exp - Purchase Of Goods/Services - Contractors,Digital Delivery,Parity Resources Limited,202538," 9,605.40 ",Information Management Services,Large,Programme Expenditure,,
UK Statistics Family,Office for National Statistics,02/06/2021,Exp - Purchase Of Goods/Services - Contractors,Digital Delivery,Parity Resources Limited,202538," 3,588.48 ",Information Management Services,Large,Programme Expenditure,,
UK Statistics Family,Office for National Statistics,02/06/2021,Exp - Purchase Of Goods/Services - Contractors,Digital Delivery,Parity Resources Limited,202538," 4,902.12 ",Information Management Services,Large,Programme Expenditure,,
UK Statistics Family,Office for National Statistics,02/06/2021,Exp - Purchase Of Goods/Services - Contractors,Data Science Campus,Parity Resources Limited,202538, 282.00 ,Information Management Services,Large,Programme Expenditure,,
UK Statistics Family,Office for National Statistics,02/06/2021,Exp - Short-Term Contract & Agency Staff - Full Cost,Survey Processing Centre,Parity Resources Limited,202538," 1,316.70 ",Information Management Services,Large,Programme Expenditure,,
UK Statistics Family,Office for National Statistics,02/06/2021,Exp - Purchase Of Goods/Services - Contractors,Business Statistics Transformation,Parity Resources Limited,202538," 10,316.88 ",Information Management Services,Large,Programme Expenditure,,
UK Statistics Family,Office for National Statistics,02/06/2021,Exp - Short-Term Contract & Agency Staff - Full Cost,Social Survey Transformation Titchfield,Parity Resources Limited,202538," 1,614.24 ",Information Management Services,Large,Programme Expenditure,,
UK Statistics Family,Office for National Statistics,02/06/2021,Exp - Purchase Of Goods/Services - Contractors,Business Architecture,LA FOSSE ASSOCIATES LIMITED,202541," 32,064.94 ",Information Management Services,Large,Programme Expenditure,,
UK Statistics Family,Office for National Statistics,02/06/2021,Exp - Purchase Of Goods/Services - Contractors,Business Architecture,LA FOSSE ASSOCIATES LIMITED,202541," 6,375.00 ",Information Management Services,Large,Programme Expenditure,,
UK Statistics Family,Office for National Statistics,02/06/2021,Exp - Purchase Of Goods/Services - Contractors,Testing,LA FOSSE ASSOCIATES LIMITED,202541," 3,000.00 ",Information Management Services,Large,Programme Expenditure,,
UK Statistics Family,Office for National Statistics,02/06/2021,Exp - Purchase Of Goods/Services - Contractors,Consultancy Management,LA FOSSE ASSOCIATES LIMITED,202541," 6,450.00 ",Information Management Services,Large,Programme Expenditure,,
UK Statistics Family,Office for National Statistics,02/06/2021,Exp - Purchase Of Goods/Services - Contractors,Programme Support,LA FOSSE ASSOCIATES LIMITED,202541," 2,750.00 ",Information Management Services,Large,Programme Expenditure,,
UK Statistics Family,Office for National Statistics,02/06/2021,Exp - Purchase Of Goods/Services - Contractors,WIDER SURVEILLANCE STUDIES,LA FOSSE ASSOCIATES LIMITED,202541," 3,600.00 ",Information Management Services,Large,Programme Expenditure,,
UK Statistics Family,Office for National Statistics,02/06/2021,Exp - Purchase Of Goods/Services - Contractors,Digital Publishing,LA FOSSE ASSOCIATES LIMITED,202541," 4,350.00 ",Information Management Services,Large,Programme Expenditure,,
UK Statistics Family,Office for National Statistics,02/06/2021,Exp - Purchase Of Goods/Services - Contractors,Data Architecture,LA FOSSE ASSOCIATES LIMITED,202541," 7,500.00 ",Information Management Services,Large,Programme Expenditure,,
UK Statistics Family,Office for National Statistics,02/06/2021,Exp - Purchase Of Goods/Services - Contractors,Data As A Service,LA FOSSE ASSOCIATES LIMITED,202541," 6,480.00 ",Information Management Services,Large,Programme Expenditure,,
UK Statistics Family,Office for National Statistics,02/06/2021,Marketing & Media,Stakeholder Engagement And Comms,M&C Saatchi UK Ltd,202543," 50,322.38 ",Marketing Services,Large,Programme Expenditure,,
UK Statistics Family,Office for National Statistics,02/06/2021,IT (Owned) At Cost - Additions,IT Operations,Insight Direct,202544," 499,153.69 ",Computers and Peripherals,Large,Programme Expenditure,,
UK Statistics Family,Office for National Statistics,02/06/2021,"ICT Outsourcing, Maintenance And Support",Survey Processing Centre,Insight Direct,202544," 86,668.66 ",Computers and Peripherals,Large,Programme Expenditure,,
UK Statistics Family,Office for National Statistics,02/06/2021,EXP - PURCHASE OF GOODS/SERVICES -  NON IT CONTRACTUAL PAYMENTS,Census CCS Data Collection,Granby Marketing Services Ltd,202551," 570,213.47 ",Stoarage and Distribution Services,Large,Programme Expenditure,,
UK Statistics Family,Office for National Statistics,02/06/2021,Surveys,Crime Statistics,Kantar UK Ltd,202552," 521,415.77 ",Statistical Services,Large,Programme Expenditure,,
UK Statistics Family,Office for National Statistics,02/06/2021,Surveys,Prices Division,Kantar UK Ltd,202552," 173,130.83 ",Statistical Services,Large,Programme Expenditure,,
UK Statistics Family,Office for National Statistics,02/06/2021,Exp - Purchase Of Goods/Services - IT Contractual Services,IT Applications,Diegesis Limited,202554," 130,320.00 ",Information Management Services,Large,Programme Expenditure,,
UK Statistics Family,Office for National Statistics,02/06/2021,Exp - Purchase Of Goods/Services - IT Contractual Services,Digital Delivery,Equal Experts UK Ltd,202556," 129,456.00 ",Information Management Services,Large,Programme Expenditure,,
UK Statistics Family,Office for National Statistics,02/06/2021,Non IT Maintenance And Hire,Digital Delivery,Hewlett Packard International Bank DAC,202557," 511,277.09 ",Leasing of Devices,SME,Programme Expenditure,,
UK Statistics Family,Office for National Statistics,03/06/2021,Telecoms,IT Operations,Crown Hosting Data Centres Limited,202731," 2,580.00 ",Information Management Services,SME,Programme Expenditure,,
UK Statistics Family,Office for National Statistics,03/06/2021,Hosting,IT Operations,Crown Hosting Data Centres Limited,202731," 65,187.11 ",Information Management Services,SME,Programme Expenditure,,
UK Statistics Family,Office for National Statistics,03/06/2021,Buildings Under Construction,Property Newport,Central Roofing Ltd,202733," 60,902.45 ",Buildings Maintenance,SME,Programme Expenditure,,
UK Statistics Family,Office for National Statistics,03/06/2021,Exp - Short-Term Contract & Agency Staff - Full Cost,Census CCS Data Collection,Talent International,202741," 4,315.46 ",Information Management Services,SME,Programme Expenditure,,
UK Statistics Family,Office for National Statistics,03/06/2021,Exp - Short-Term Contract & Agency Staff - Full Cost,Recruitment ,Talent International,202741," 3,392.42 ",Information Management Services,SME,Programme Expenditure,,
UK Statistics Family,Office for National Statistics,03/06/2021,Exp - Purchase Of Goods/Services - Contractors,IT Applications,Talent International,202741," 17,999.70 ",Information Management Services,SME,Programme Expenditure,,
UK Statistics Family,Office for National Statistics,03/06/2021,Exp - Short-Term Contract & Agency Staff - Full Cost,Interviewer Management TU,Talent International,202741," 1,710.83 ",Information Management Services,SME,Programme Expenditure,,
UK Statistics Family,Office for National Statistics,03/06/2021,Marketing & Media,Stakeholder Engagement And Comms,M&C Saatchi UK Ltd,202746," 69,322.68 ",Marketing Services,Large,Programme Expenditure,,
UK Statistics Family,Office for National Statistics,04/06/2021,Surveys,Sustainability And Inequalities,Ricardo-AEA Ltd,202750," 61,560.35 ",Statistical Services,SME,Programme Expenditure,,
UK Statistics Family,Office for National Statistics,04/06/2021,Exp - Purchase Of Goods/Services - Contractors,Testing,La International,202753," 32,505.16 ",Information Management Services,SME,Programme Expenditure,,
UK Statistics Family,Office for National Statistics,04/06/2021,Exp - Purchase Of Goods/Services - Contractors,Testing,La International,202753," 5,206.25 ",Information Management Services,SME,Programme Expenditure,,
UK Statistics Family,Office for National Statistics,04/06/2021,Exp - Purchase Of Goods/Services - Contractors,HALE,La International,202753," 2,413.75 ",Information Management Services,SME,Programme Expenditure,,
UK Statistics Family,Office for National Statistics,04/06/2021,Exp - Purchase Of Goods/Services - Contractors,Data Architecture,La International,202753," 3,588.30 ",Information Management Services,SME,Programme Expenditure,,
UK Statistics Family,Office for National Statistics,04/06/2021,Exp - Purchase Of Goods/Services - Contractors,Data Architecture,La International,202753," 3,524.22 ",Information Management Services,SME,Programme Expenditure,,
UK Statistics Family,Office for National Statistics,04/06/2021,Exp - Purchase Of Goods/Services - Contractors,Data Architecture,La International,202753," 10,316.40 ",Information Management Services,SME,Programme Expenditure,,
UK Statistics Family,Office for National Statistics,04/06/2021,Exp - Purchase Of Goods/Services - Contractors,Data Architecture,La International,202753," 3,524.22 ",Information Management Services,SME,Programme Expenditure,,
UK Statistics Family,Office for National Statistics,04/06/2021,Exp - Short-Term Contract & Agency Staff - Full Cost,Social Survey Transformation Titchfield,La International,202753, 819.00 ,Information Management Services,SME,Programme Expenditure,,
UK Statistics Family,Office for National Statistics,04/06/2021,Hosting,IT Operations,CTS (Cloud Technology Solutions Ltd),202760," 272,235.89 ",DST Infrastructure Preparation,Large,Programme Expenditure,,
UK Statistics Family,Office for National Statistics,04/06/2021,EXP - PURCHASE OF GOODS/SERVICES -  NON IT CONTRACTUAL PAYMENTS,Data Collection Service,HH Associates Ltd,202763," 417,636.56 ",Print and Post Services,SME,Programme Expenditure,,
UK Statistics Family,Office for National Statistics,04/06/2021,EXP - PURCHASE OF GOODS/SERVICES -  NON IT CONTRACTUAL PAYMENTS,Census CCS Data Collection,Adecco UK Limited,202764," 246,740.40 ",Census People Services Contractual,SME,Programme Expenditure,,
UK Statistics Family,Office for National Statistics,04/06/2021,Exp - Purchase Of Goods/Services - IT Contractual Services,IT Operations,Methods Business & Digital Technology Ltd,202769," 163,488.00 ",Information Management Services,Large,Programme Expenditure,,
UK Statistics Family,Office for National Statistics,04/06/2021,Exp - Purchase Of Goods/Services - Contractors,Business Architecture,LA FOSSE ASSOCIATES LIMITED,202772," 15,930.00 ",Information Management Services,Large,Programme Expenditure,,
UK Statistics Family,Office for National Statistics,04/06/2021,Exp - Purchase Of Goods/Services - Contractors,Testing,LA FOSSE ASSOCIATES LIMITED,202772," 3,000.00 ",Information Management Services,Large,Programme Expenditure,,
UK Statistics Family,Office for National Statistics,04/06/2021,Exp - Purchase Of Goods/Services - Contractors,Digital Publishing,LA FOSSE ASSOCIATES LIMITED,202772," 4,350.00 ",Information Management Services,Large,Programme Expenditure,,
UK Statistics Family,Office for National Statistics,04/06/2021,Exp - Purchase Of Goods/Services - Contractors,Digital Publishing,LA FOSSE ASSOCIATES LIMITED,202772," 7,200.00 ",Information Management Services,Large,Programme Expenditure,,
UK Statistics Family,Office for National Statistics,04/06/2021,Exp - Purchase Of Goods/Services - Contractors,Data Architecture,LA FOSSE ASSOCIATES LIMITED,202772," 4,905.00 ",Information Management Services,Large,Programme Expenditure,,
UK Statistics Family,Office for National Statistics,04/06/2021,Exp - Purchase Of Goods/Services - Contractors,Data Architecture,LA FOSSE ASSOCIATES LIMITED,202772," 1,380.00 ",Information Management Services,Large,Programme Expenditure,,
UK Statistics Family,Office for National Statistics,04/06/2021,Exp - Purchase Of Goods/Services - Contractors,Tech Delivery Legacy Sp,LA FOSSE ASSOCIATES LIMITED,202772," 3,600.00 ",Information Management Services,Large,Programme Expenditure,,
UK Statistics Family,Office for National Statistics,04/06/2021,Exp - Purchase Of Goods/Services - Contractors,Tech Delivery Legacy Sp,LA FOSSE ASSOCIATES LIMITED,202772," 3,600.00 ",Information Management Services,Large,Programme Expenditure,,
UK Statistics Family,Office for National Statistics,07/06/2021,Telecoms,Tech Delivery Next Gen IT And Infrastructure,Freedom Communications (UK) Ltd,203013, 54.60 ,Software Licenses,Large,Programme Expenditure,,
UK Statistics Family,Office for National Statistics,07/06/2021,Telecoms,Tech Delivery Next Gen IT And Infrastructure,Freedom Communications (UK) Ltd,203013," 6,144.00 ",Software Licenses,Large,Programme Expenditure,,
UK Statistics Family,Office for National Statistics,07/06/2021,Telecoms,IT Operations,Freedom Communications (UK) Ltd,203013," 87,359.17 ",Software Licenses,Large,Programme Expenditure,,Karla to confirm what his is 
UK Statistics Family,Office for National Statistics,07/06/2021,Exp - Purchase Of Goods/Services - Contractors,Business Architecture,LA FOSSE ASSOCIATES LIMITED,203016," 19,654.94 ",Information Management Services,Large,Programme Expenditure,,
UK Statistics Family,Office for National Statistics,07/06/2021,Exp - Purchase Of Goods/Services - Contractors,Business Architecture,LA FOSSE ASSOCIATES LIMITED,203016," 6,375.00 ",Information Management Services,Large,Programme Expenditure,,
UK Statistics Family,Office for National Statistics,07/06/2021,Exp - Purchase Of Goods/Services - Contractors,Operations,LA FOSSE ASSOCIATES LIMITED,203016," 3,300.00 ",Information Management Services,Large,Programme Expenditure,,
UK Statistics Family,Office for National Statistics,07/06/2021,Exp - Purchase Of Goods/Services - Contractors,Consultancy Management,LA FOSSE ASSOCIATES LIMITED,203016," 5,130.00 ",Information Management Services,Large,Programme Expenditure,,
UK Statistics Family,Office for National Statistics,07/06/2021,Exp - Purchase Of Goods/Services - Contractors,Programme Support,LA FOSSE ASSOCIATES LIMITED,203016," 2,200.00 ",Information Management Services,Large,Programme Expenditure,,
UK Statistics Family,Office for National Statistics,07/06/2021,Exp - Purchase Of Goods/Services - Contractors,WIDER SURVEILLANCE STUDIES,LA FOSSE ASSOCIATES LIMITED,203016," 3,000.00 ",Information Management Services,Large,Programme Expenditure,,
UK Statistics Family,Office for National Statistics,07/06/2021,Exp - Purchase Of Goods/Services - Contractors,Data Architecture,LA FOSSE ASSOCIATES LIMITED,203016," 3,450.00 ",Information Management Services,Large,Programme Expenditure,,
UK Statistics Family,Office for National Statistics,07/06/2021,Exp - Purchase Of Goods/Services - Contractors,Tech Delivery Legacy Sp,LA FOSSE ASSOCIATES LIMITED,203016," 3,600.00 ",Information Management Services,Large,Programme Expenditure,,
UK Statistics Family,Office for National Statistics,07/06/2021,Exp - Purchase Of Goods/Services - Contractors,Data As A Service,LA FOSSE ASSOCIATES LIMITED,203016," 3,600.00 ",Information Management Services,Large,Programme Expenditure,,
UK Statistics Family,Office for National Statistics,07/06/2021,Exp - Purchase Of Goods/Services - IT Contractual Services,Digital Delivery,Equal Experts UK Ltd,203017," 149,544.00 ",Information Management Services,Large,Programme Expenditure,,
UK Statistics Family,Office for National Statistics,07/06/2021,"ICT Outsourcing, Maintenance And Support",IT Operations,Phoenix Software Ltd,203028," 33,223.78 ",Software Licenses,SME,Programme Expenditure,,
UK Statistics Family,Office for National Statistics,07/06/2021,End User Software And Hardware,IT Operations,Softcat,203029," 30,524.40 ",Software Licenses,SME,Programme Expenditure,,
UK Statistics Family,Office for National Statistics,07/06/2021,"ICT Outsourcing, Maintenance And Support",IT Operations,High Speed Office (trading as hSo),203035," 30,240.00 ",Information Management Services,SME,Programme Expenditure,,
UK Statistics Family,Office for National Statistics,08/06/2021,Exp - Short-Term Contract & Agency Staff - Full Cost,Stakeholder Engagement And Comms,Parity Resources Limited,203043," 2,607.26 ",Information Management Services,Large,Programme Expenditure,,
UK Statistics Family,Office for National Statistics,08/06/2021,Exp - Purchase Of Goods/Services - Contractors,Programme Delivery,Parity Resources Limited,203043," 2,648.40 ",Information Management Services,Large,Programme Expenditure,,
UK Statistics Family,Office for National Statistics,08/06/2021,Exp - Purchase Of Goods/Services - Contractors,Programme Support,Parity Resources Limited,203043," 2,993.80 ",Information Management Services,Large,Programme Expenditure,,
UK Statistics Family,Office for National Statistics,08/06/2021,Exp - Purchase Of Goods/Services - Contractors,Covid Infection Survey,Parity Resources Limited,203043," 3,000.00 ",Information Management Services,Large,Programme Expenditure,,
UK Statistics Family,Office for National Statistics,08/06/2021,Exp - Short-Term Contract & Agency Staff - Full Cost,Recruitment ,Parity Resources Limited,203043," 2,930.40 ",Information Management Services,Large,Programme Expenditure,,
UK Statistics Family,Office for National Statistics,08/06/2021,Exp - Purchase Of Goods/Services - Contractors,INTEGRATED DATA STRATEGY AND DELIVERY,Parity Resources Limited,203043," 4,328.40 ",Information Management Services,Large,Programme Expenditure,,
UK Statistics Family,Office for National Statistics,08/06/2021,Exp - Short-Term Contract & Agency Staff - Full Cost,Data Architecture,Parity Resources Limited,203043," 3,158.40 ",Information Management Services,Large,Programme Expenditure,,
UK Statistics Family,Office for National Statistics,08/06/2021,Exp - Purchase Of Goods/Services - Contractors,Data Architecture,Parity Resources Limited,203043," 3,592.56 ",Information Management Services,Large,Programme Expenditure,,
UK Statistics Family,Office for National Statistics,08/06/2021,Exp - Purchase Of Goods/Services - Contractors,Digital Delivery,Parity Resources Limited,203043," 3,430.50 ",Information Management Services,Large,Programme Expenditure,,
UK Statistics Family,Office for National Statistics,08/06/2021,Exp - Purchase Of Goods/Services - Contractors,Digital Delivery,Parity Resources Limited,203043," 2,870.78 ",Information Management Services,Large,Programme Expenditure,,
UK Statistics Family,Office for National Statistics,08/06/2021,Exp - Purchase Of Goods/Services - Contractors,Digital Delivery,Parity Resources Limited,203043," 2,723.40 ",Information Management Services,Large,Programme Expenditure,,
UK Statistics Family,Office for National Statistics,08/06/2021,Exp - Short-Term Contract & Agency Staff - Full Cost,Survey Processing Centre,Parity Resources Limited,203043, 732.60 ,Information Management Services,Large,Programme Expenditure,,
UK Statistics Family,Office for National Statistics,08/06/2021,Exp - Short-Term Contract & Agency Staff - Full Cost,Social Survey Transformation Titchfield,Parity Resources Limited,203043, 785.88 ,Information Management Services,Large,Programme Expenditure,,
UK Statistics Family,Office for National Statistics,09/06/2021,Exp - Short-Term Contract & Agency Staff - Full Cost,Stakeholder Engagement And Comms,Concept Information Technology Ltd T/A Concept Resourcing,203061," 7,157.43 ",Information Management Services,Large,Programme Expenditure,,
UK Statistics Family,Office for National Statistics,09/06/2021,Exp - Purchase Of Goods/Services - Contractors,Testing,Concept Information Technology Ltd T/A Concept Resourcing,203061," 13,200.00 ",Information Management Services,Large,Programme Expenditure,,
UK Statistics Family,Office for National Statistics,09/06/2021,Exp - Short-Term Contract & Agency Staff - Full Cost,Census CCS Data Collection,Concept Information Technology Ltd T/A Concept Resourcing,203061," 5,405.65 ",Information Management Services,Large,Programme Expenditure,,
UK Statistics Family,Office for National Statistics,09/06/2021,Exp - Short-Term Contract & Agency Staff - Full Cost,Census CCS Data Collection,Concept Information Technology Ltd T/A Concept Resourcing,203061," 10,242.99 ",Information Management Services,Large,Programme Expenditure,,
UK Statistics Family,Office for National Statistics,09/06/2021,Exp - Short-Term Contract & Agency Staff - Full Cost,Covid Infection Survey,Concept Information Technology Ltd T/A Concept Resourcing,203061," 3,002.43 ",Information Management Services,Large,Programme Expenditure,,
UK Statistics Family,Office for National Statistics,09/06/2021,Exp - Short-Term Contract & Agency Staff - Full Cost,Productivity Research And Professional Development,Concept Information Technology Ltd T/A Concept Resourcing,203061," 2,228.95 ",Information Management Services,Large,Programme Expenditure,,
UK Statistics Family,Office for National Statistics,09/06/2021,Exp - Short-Term Contract & Agency Staff - Full Cost,Strategy And Engagement,Concept Information Technology Ltd T/A Concept Resourcing,203061," 6,102.68 ",Information Management Services,Large,Programme Expenditure,,
UK Statistics Family,Office for National Statistics,09/06/2021,Exp - Short-Term Contract & Agency Staff - Full Cost,Data Architecture,Concept Information Technology Ltd T/A Concept Resourcing,203061," 6,449.22 ",Information Management Services,Large,Programme Expenditure,,
UK Statistics Family,Office for National Statistics,09/06/2021,Exp - Purchase Of Goods/Services - Contractors,Data Architecture,Concept Information Technology Ltd T/A Concept Resourcing,203061," 12,744.00 ",Information Management Services,Large,Programme Expenditure,,
UK Statistics Family,Office for National Statistics,09/06/2021,Exp - Short-Term Contract & Agency Staff - Full Cost,Interviewer Management TU,Concept Information Technology Ltd T/A Concept Resourcing,203061," 1,885.73 ",Information Management Services,Large,Programme Expenditure,,
UK Statistics Family,Office for National Statistics,09/06/2021,Exp - Short-Term Contract & Agency Staff - Full Cost,Prices Division,Concept Information Technology Ltd T/A Concept Resourcing,203061," 1,007.44 ",Information Management Services,Large,Programme Expenditure,,
UK Statistics Family,Office for National Statistics,09/06/2021,Exp - Short-Term Contract & Agency Staff - Full Cost,Prices Division,Concept Information Technology Ltd T/A Concept Resourcing,203061," 20,199.38 ",Information Management Services,Large,Programme Expenditure,,
UK Statistics Family,Office for National Statistics,09/06/2021,Exp - Purchase Of Goods/Services - Other ICT Costs Software,Finance,Scc,203062," 154,286.88 ",Software Licenses,Large,Programme Expenditure,,
UK Statistics Family,Office for National Statistics,09/06/2021,Telecoms,Digital Delivery,Xma Limited,203064," 858,097.20 ",Costs Associated with Mobile Devices,Large,Programme Expenditure,,
UK Statistics Family,Office for National Statistics,09/06/2021,"ICT Outsourcing, Maintenance And Support",Researcher Support And Data Access ,Equiniti Limited,203065," 281,252.87 ",Software Licenses,Large,Programme Expenditure,,
UK Statistics Family,Office for National Statistics,09/06/2021,Hosting,IT Operations,Equiniti Limited,203065," 98,918.12 ",Software Licenses,Large,Programme Expenditure,,
UK Statistics Family,Office for National Statistics,09/06/2021,Exp - Purchase Of Goods/Services - IT Contractual Services,Strategy And Architecture,Medley Business Solutions Ltd,203067," 11,404.80 ",Information Management Services,Large,Programme Expenditure,,
UK Statistics Family,Office for National Statistics,09/06/2021,Exp - Purchase Of Goods/Services - IT Contractual Services,Strategy And Architecture,Medley Business Solutions Ltd,203067," 17,107.20 ",Information Management Services,Large,Programme Expenditure,,
UK Statistics Family,Office for National Statistics,09/06/2021,Exp - Purchase Of Goods/Services - Contractors,Business Architecture,La International,203069," 5,069.18 ",Information Management Services,SME,Programme Expenditure,,
UK Statistics Family,Office for National Statistics,09/06/2021,Exp - Purchase Of Goods/Services - Contractors,Sustainability And Inequalities,La International,203069," 5,051.04 ",Information Management Services,SME,Programme Expenditure,,
UK Statistics Family,Office for National Statistics,09/06/2021,Exp - Purchase Of Goods/Services - Contractors,INTEGRATED DATA STRATEGY AND DELIVERY,La International,203069, 83.10 ,Information Management Services,SME,Programme Expenditure,,
UK Statistics Family,Office for National Statistics,09/06/2021,Exp - Purchase Of Goods/Services - Contractors,Data Architecture,La International,203069," 7,176.60 ",Information Management Services,SME,Programme Expenditure,,
UK Statistics Family,Office for National Statistics,09/06/2021,Exp - Purchase Of Goods/Services - Contractors,CLOUD ARCHITECTURE,La International,203069," 3,844.62 ",Information Management Services,SME,Programme Expenditure,,
UK Statistics Family,Office for National Statistics,09/06/2021,Exp - Purchase Of Goods/Services - Contractors,Tech Delivery Data As A Platform,La International,203069," 16,506.18 ",Information Management Services,SME,Programme Expenditure,,
UK Statistics Family,Office for National Statistics,09/06/2021,Exp - Purchase Of Goods/Services - Contractors,IT Applications,La International,203069," 23,407.41 ",Information Management Services,SME,Programme Expenditure,,
UK Statistics Family,Office for National Statistics,09/06/2021,Exp - Purchase Of Goods/Services - Contractors,Digital Delivery,La International,203069," 5,741.28 ",Information Management Services,SME,Programme Expenditure,,
UK Statistics Family,Office for National Statistics,09/06/2021,Exp - Short-Term Contract & Agency Staff - Full Cost,Social Survey Transformation Titchfield,La International,203069, 777.00 ,Information Management Services,SME,Programme Expenditure,,
UK Statistics Family,Office for National Statistics,09/06/2021,Exp - Purchase Of Goods/Services - Contractors,Social Survey Transformation Titchfield,La International,203069," 7,404.40 ",Information Management Services,SME,Programme Expenditure,,
UK Statistics Family,Office for National Statistics,09/06/2021,Print and Post,Social Surveys Division,APS Group,203074," 32,279.18 ",Print and Post Services,Large,Programme Expenditure,,
UK Statistics Family,Office for National Statistics,09/06/2021,Exp - Purchase Of Goods/Services - Contractors,Business Architecture,Malikshaw Interim & Executive,203076," 15,577.28 ",Information Management Services,SME,Programme Expenditure,,
UK Statistics Family,Office for National Statistics,09/06/2021,Exp - Purchase Of Goods/Services - Contractors,Testing,Malikshaw Interim & Executive,203076," 33,000.00 ",Information Management Services,SME,Programme Expenditure,,
UK Statistics Family,Office for National Statistics,09/06/2021,Exp - Short-Term Contract & Agency Staff - Full Cost,Census CCS Data Collection,Malikshaw Interim & Executive,203076," 1,995.95 ",Information Management Services,SME,Programme Expenditure,,
UK Statistics Family,Office for National Statistics,09/06/2021,Exp - Short-Term Contract & Agency Staff - Full Cost,Census CCS Data Collection,Malikshaw Interim & Executive,203076," 32,359.69 ",Information Management Services,SME,Programme Expenditure,,
UK Statistics Family,Office for National Statistics,09/06/2021,Exp - Short-Term Contract & Agency Staff - Full Cost,Census CCS Data Collection,Malikshaw Interim & Executive,203076," 4,146.41 ",Information Management Services,SME,Programme Expenditure,,
UK Statistics Family,Office for National Statistics,09/06/2021,Exp - Short-Term Contract & Agency Staff - Full Cost,CENSUS PARTNERSHIPS AND ENGAGEMENT,Malikshaw Interim & Executive,203076," 2,872.21 ",Information Management Services,SME,Programme Expenditure,,
UK Statistics Family,Office for National Statistics,09/06/2021,Exp - Purchase Of Goods/Services - Contractors,Programme Support,Malikshaw Interim & Executive,203076," 9,099.59 ",Information Management Services,SME,Programme Expenditure,,
UK Statistics Family,Office for National Statistics,09/06/2021,Exp - Short-Term Contract & Agency Staff - Full Cost,Covid Infection Survey,Malikshaw Interim & Executive,203076," 6,317.11 ",Information Management Services,SME,Programme Expenditure,,
UK Statistics Family,Office for National Statistics,09/06/2021,Exp - Short-Term Contract & Agency Staff - Full Cost,Finance,Malikshaw Interim & Executive,203076," 3,172.04 ",Information Management Services,SME,Programme Expenditure,,
UK Statistics Family,Office for National Statistics,09/06/2021,Exp - Purchase Of Goods/Services - Contractors,Portfolio Delivery,Malikshaw Interim & Executive,203076," 7,200.00 ",Information Management Services,SME,Programme Expenditure,,
UK Statistics Family,Office for National Statistics,09/06/2021,Exp - Short-Term Contract & Agency Staff - Full Cost,Data Architecture,Malikshaw Interim & Executive,203076," 5,567.76 ",Information Management Services,SME,Programme Expenditure,,
UK Statistics Family,Office for National Statistics,09/06/2021,Exp - Purchase Of Goods/Services - Contractors,Data Architecture,Malikshaw Interim & Executive,203076," 13,680.00 ",Information Management Services,SME,Programme Expenditure,,
UK Statistics Family,Office for National Statistics,09/06/2021,Exp - Purchase Of Goods/Services - Contractors,Strategy And Architecture,Malikshaw Interim & Executive,203076," 10,030.80 ",Information Management Services,SME,Programme Expenditure,,
UK Statistics Family,Office for National Statistics,09/06/2021,Exp - Purchase Of Goods/Services - Contractors,Strategy And Architecture,Malikshaw Interim & Executive,203076," 13,063.94 ",Information Management Services,SME,Programme Expenditure,,
UK Statistics Family,Office for National Statistics,09/06/2021,Exp - Purchase Of Goods/Services - Contractors,Tech Delivery Legacy Sp,Malikshaw Interim & Executive,203076," 13,063.94 ",Information Management Services,SME,Programme Expenditure,,
UK Statistics Family,Office for National Statistics,09/06/2021,Exp - Purchase Of Goods/Services - Contractors,Tech Delivery Legacy Sp,Malikshaw Interim & Executive,203076," 13,680.00 ",Information Management Services,SME,Programme Expenditure,,
UK Statistics Family,Office for National Statistics,09/06/2021,Exp - Purchase Of Goods/Services - Contractors,Tech Delivery Legacy Sp,Malikshaw Interim & Executive,203076," 13,063.94 ",Information Management Services,SME,Programme Expenditure,,
UK Statistics Family,Office for National Statistics,09/06/2021,FM Contract Payments,Property Services,Gresham Office Furniture Limited,203077," 46,358.40 ",Office Furniture,SME,Programme Expenditure,,
UK Statistics Family,Office for National Statistics,09/06/2021,Exp - Purchase Of Goods/Services - IT Contractual Services,Finance,Accenture (UK) Limited,203079," 123,356.56 ",Consultancy,SME,Programme Expenditure,,
UK Statistics Family,Office for National Statistics,09/06/2021,EXP - PURCHASE OF GOODS/SERVICES -  NON IT CONTRACTUAL PAYMENTS,Covid Infection Survey,HH Associates Ltd,203080," 58,312.54 ",Print and Post Services,SME,Programme Expenditure,,
UK Statistics Family,Office for National Statistics,09/06/2021,EXP - PURCHASE OF GOODS/SERVICES -  NON IT CONTRACTUAL PAYMENTS,Census CCS Data Collection,Adecco UK Limited,203081," 189,757.20 ",Census People Services Contractual,SME,Programme Expenditure,,
UK Statistics Family,Office for National Statistics,09/06/2021,EXP - PURCHASE OF GOODS/SERVICES -  NON IT CONTRACTUAL PAYMENTS,Census CCS Data Collection,Granby Marketing Services Ltd,203082," 881,954.51 ",Stoarage and Distribution Services,Large,Programme Expenditure,,
UK Statistics Family,Office for National Statistics,09/06/2021,Marketing & Media,Stakeholder Engagement And Comms,Manning Gottlieb,203083," 429,834.06 ",Marketing Services,Large,Programme Expenditure,,
UK Statistics Family,Office for National Statistics,09/06/2021,Exp - Purchase Of Goods/Services - Contractors,Commercial Services,Gardiner & Theobald LLP,203090," 24,430.00 ",Temporary Staff,Large,Programme Expenditure,,
UK Statistics Family,Office for National Statistics,09/06/2021,Exp - Purchase Of Goods/Services - Contractors,Commercial Services,Gardiner & Theobald LLP,203090," 60,750.00 ",Temporary Staff,Large,Programme Expenditure,,
UK Statistics Family,Office for National Statistics,09/06/2021,Exp - Purchase Of Goods And Services Consultants,Commercial Services,Gardiner & Theobald LLP,203090," 7,400.00 ",Temporary Staff,Large,Programme Expenditure,,
UK Statistics Family,Office for National Statistics,09/06/2021,Other Goods And Services,Overseas Development,"Foreign, Commonwealth & Development Office",203092," 68,368.38 ",Seconded Staff Costs,Large,Programme Expenditure,,
UK Statistics Family,Office for National Statistics,10/06/2021,Exp - Short-Term Contract & Agency Staff - Full Cost,Census CCS Data Collection,Concept Information Technology Ltd T/A Concept Resourcing,203303," 3,361.94 ",Information Management Services,Large,Programme Expenditure,,
UK Statistics Family,Office for National Statistics,10/06/2021,Exp - Short-Term Contract & Agency Staff - Full Cost,Census CCS Data Collection,Concept Information Technology Ltd T/A Concept Resourcing,203303," 2,755.60 ",Information Management Services,Large,Programme Expenditure,,
UK Statistics Family,Office for National Statistics,10/06/2021,Exp - Short-Term Contract & Agency Staff - Full Cost,Covid Infection Survey,Concept Information Technology Ltd T/A Concept Resourcing,203303," 2,466.80 ",Information Management Services,Large,Programme Expenditure,,
UK Statistics Family,Office for National Statistics,10/06/2021,Exp - Short-Term Contract & Agency Staff - Full Cost,Covid Infection Survey,Concept Information Technology Ltd T/A Concept Resourcing,203303," 7,932.86 ",Information Management Services,Large,Programme Expenditure,,
UK Statistics Family,Office for National Statistics,10/06/2021,Exp - Short-Term Contract & Agency Staff - Full Cost,Covid Infection Survey,Concept Information Technology Ltd T/A Concept Resourcing,203303," 4,817.97 ",Information Management Services,Large,Programme Expenditure,,
UK Statistics Family,Office for National Statistics,10/06/2021,Exp - Purchase Of Goods/Services - Contractors,Data Architecture,Concept Information Technology Ltd T/A Concept Resourcing,203303," 3,540.00 ",Information Management Services,Large,Programme Expenditure,,
UK Statistics Family,Office for National Statistics,10/06/2021,Exp - Short-Term Contract & Agency Staff - Full Cost,Prices Division,Concept Information Technology Ltd T/A Concept Resourcing,203303," 4,002.53 ",Information Management Services,Large,Programme Expenditure,,
UK Statistics Family,Office for National Statistics,10/06/2021,Exp - Short-Term Contract & Agency Staff - Full Cost,Prices Division,Concept Information Technology Ltd T/A Concept Resourcing,203303," 9,983.96 ",Information Management Services,Large,Programme Expenditure,,
UK Statistics Family,Office for National Statistics,10/06/2021,Exp - Short-Term Contract & Agency Staff - Full Cost,Labour Market,Concept Information Technology Ltd T/A Concept Resourcing,203303," 1,007.44 ",Information Management Services,Large,Programme Expenditure,,
UK Statistics Family,Office for National Statistics,10/06/2021,Postage,Survey Processing Centre,DHL Parcel Ltd,203305," 26,093.52 ",Postage,Large,Programme Expenditure,,
UK Statistics Family,Office for National Statistics,10/06/2021,Exp - Purchase Of Goods/Services - Contractors,Operations,Certes Computing Ltd,203306," 14,603.40 ",Information Management Services,SME,Programme Expenditure,,
UK Statistics Family,Office for National Statistics,10/06/2021,Exp - Purchase Of Goods/Services - Contractors,Security Advisory,Certes Computing Ltd,203306," 31,801.05 ",Information Management Services,SME,Programme Expenditure,,
UK Statistics Family,Office for National Statistics,10/06/2021,Exp - Purchase Of Goods/Services - Contractors,Security Advisory,Certes Computing Ltd,203306," 14,987.81 ",Information Management Services,SME,Programme Expenditure,,
UK Statistics Family,Office for National Statistics,10/06/2021,Exp - Purchase Of Goods/Services - Contractors,Data Architecture,Certes Computing Ltd,203306," 10,078.99 ",Information Management Services,SME,Programme Expenditure,,
UK Statistics Family,Office for National Statistics,10/06/2021,Exp - Purchase Of Goods/Services - Contractors,CLOUD ARCHITECTURE,Certes Computing Ltd,203306," 14,603.40 ",Information Management Services,SME,Programme Expenditure,,
UK Statistics Family,Office for National Statistics,10/06/2021,Exp - Purchase Of Goods/Services - Contractors,Strategy And Architecture,Certes Computing Ltd,203306," 17,820.00 ",Information Management Services,SME,Programme Expenditure,,
UK Statistics Family,Office for National Statistics,10/06/2021,Exp - Purchase Of Goods/Services - Contractors,Tech Delivery Legacy Sp,Certes Computing Ltd,203306," 12,778.03 ",Information Management Services,SME,Programme Expenditure,,
UK Statistics Family,Office for National Statistics,10/06/2021,Exp - Purchase Of Goods/Services - Contractors,Tech Delivery Data As A Platform,Certes Computing Ltd,203306," 15,820.46 ",Information Management Services,SME,Programme Expenditure,,
UK Statistics Family,Office for National Statistics,10/06/2021,Exp - Purchase Of Goods/Services - Contractors,Tech Delivery Data As A Platform,Certes Computing Ltd,203306," 13,678.63 ",Information Management Services,SME,Programme Expenditure,,
UK Statistics Family,Office for National Statistics,10/06/2021,Exp - Purchase Of Goods/Services - Contractors,Digital Delivery,Certes Computing Ltd,203306," 12,105.50 ",Information Management Services,SME,Programme Expenditure,,
UK Statistics Family,Office for National Statistics,10/06/2021,Exp - Purchase Of Goods/Services - Contractors,Digital Delivery,Certes Computing Ltd,203306," 13,034.29 ",Information Management Services,SME,Programme Expenditure,,
UK Statistics Family,Office for National Statistics,10/06/2021,Exp - Purchase Of Goods/Services - Contractors,Digital Delivery,Certes Computing Ltd,203306," 12,912.48 ",Information Management Services,SME,Programme Expenditure,,
UK Statistics Family,Office for National Statistics,10/06/2021,Exp - Purchase Of Goods/Services - Contractors,Digital Delivery,Certes Computing Ltd,203306," 12,329.74 ",Information Management Services,SME,Programme Expenditure,,
UK Statistics Family,Office for National Statistics,10/06/2021,Exp - Purchase Of Goods/Services - IT Contractual Services,Tech Delivery Data As A Platform,Insight Direct,203314," 47,010.31 ",Information Management Services,Large,Programme Expenditure,,
UK Statistics Family,Office for National Statistics,11/06/2021,Surveys,International Trade And Transactions,Mango Solutions,203477," 13,872.00 ",Information Management Services,SME,Programme Expenditure,,
UK Statistics Family,Office for National Statistics,11/06/2021,Surveys,International Trade And Transactions,Mango Solutions,203477," 43,248.00 ",Information Management Services,SME,Programme Expenditure,,
UK Statistics Family,Office for National Statistics,11/06/2021,Exp - Purchase Of Goods/Services - Contractors,Business Architecture,Certes Computing Ltd,203480," 16,266.47 ",Information Management Services,SME,Programme Expenditure,,
UK Statistics Family,Office for National Statistics,11/06/2021,Exp - Purchase Of Goods/Services - Contractors,Testing,Certes Computing Ltd,203480," 12,086.12 ",Information Management Services,SME,Programme Expenditure,,
UK Statistics Family,Office for National Statistics,11/06/2021,Exp - Purchase Of Goods/Services - Contractors,Programme Delivery,Certes Computing Ltd,203480," 11,528.57 ",Information Management Services,SME,Programme Expenditure,,
UK Statistics Family,Office for National Statistics,11/06/2021,Exp - Purchase Of Goods/Services - Contractors,Security Advisory,Certes Computing Ltd,203480," 13,183.15 ",Information Management Services,SME,Programme Expenditure,,
UK Statistics Family,Office for National Statistics,11/06/2021,Exp - Purchase Of Goods/Services - Contractors,Census & Soc Methodology Dd,Certes Computing Ltd,203480," 13,318.01 ",Information Management Services,SME,Programme Expenditure,,
UK Statistics Family,Office for National Statistics,11/06/2021,Exp - Purchase Of Goods/Services - Contractors,Data Architecture,Certes Computing Ltd,203480," 21,684.91 ",Information Management Services,SME,Programme Expenditure,,
UK Statistics Family,Office for National Statistics,11/06/2021,Exp - Purchase Of Goods/Services - Contractors,Strategy And Architecture,Certes Computing Ltd,203480," 14,987.16 ",Information Management Services,SME,Programme Expenditure,,
UK Statistics Family,Office for National Statistics,11/06/2021,Exp - Purchase Of Goods/Services - Contractors,Tech Delivery Legacy Sp,Certes Computing Ltd,203480," 13,678.63 ",Information Management Services,SME,Programme Expenditure,,
UK Statistics Family,Office for National Statistics,11/06/2021,Exp - Purchase Of Goods/Services - Contractors,Tech Delivery Legacy Sp,Certes Computing Ltd,203480," 6,533.16 ",Information Management Services,SME,Programme Expenditure,,
UK Statistics Family,Office for National Statistics,11/06/2021,Exp - Purchase Of Goods/Services - Contractors,Tech Delivery Data As A Platform,Certes Computing Ltd,203480," 8,006.28 ",Information Management Services,SME,Programme Expenditure,,
UK Statistics Family,Office for National Statistics,11/06/2021,Exp - Purchase Of Goods/Services - Contractors,Digital Delivery,Certes Computing Ltd,203480," 7,200.00 ",Information Management Services,SME,Programme Expenditure,,
UK Statistics Family,Office for National Statistics,11/06/2021,Exp - Purchase Of Goods/Services - Contractors,Digital Delivery,Certes Computing Ltd,203480," 12,598.74 ",Information Management Services,SME,Programme Expenditure,,
UK Statistics Family,Office for National Statistics,11/06/2021,Stationery,Lodgecard,Royal Bank of Scotland,203483," 1,109.91 ",Multiple Procurement Card Purchases  - Stationery ,Large,Programme Expenditure,,
UK Statistics Family,Office for National Statistics,11/06/2021,Other Goods And Services,GPC,Royal Bank of Scotland,203483," 24,428.84 ",Multiple Procurement Card Purchases - other goods/services  ,Large,Programme Expenditure,,
UK Statistics Family,Office for National Statistics,11/06/2021,Travel And Subsistence,Car Hire,Royal Bank of Scotland,203483," 6,392.07 ",Multiple Procurement Card Purchases - Vehicle Hire  ,Large,Programme Expenditure,,
UK Statistics Family,Office for National Statistics,11/06/2021,Marketing & Media,Stakeholder Engagement And Comms,Manning Gottlieb,203486," 102,592.36 ",Marketing Services,Large,Programme Expenditure,,
UK Statistics Family,Office for National Statistics,11/06/2021,Exp - Purchase Of Goods/Services - Contractors,Business Architecture,Talent International,203488," 12,695.66 ",Information Management Services,SME,Programme Expenditure,,
UK Statistics Family,Office for National Statistics,11/06/2021,Exp - Short-Term Contract & Agency Staff - Full Cost,Census CCS Data Collection,Talent International,203488," 25,824.61 ",Information Management Services,SME,Programme Expenditure,,
UK Statistics Family,Office for National Statistics,11/06/2021,Exp - Short-Term Contract & Agency Staff - Full Cost,Census CCS Data Collection,Talent International,203488," 17,959.22 ",Information Management Services,SME,Programme Expenditure,,
UK Statistics Family,Office for National Statistics,11/06/2021,Exp - Short-Term Contract & Agency Staff - Full Cost,Covid Infection Survey,Talent International,203488," 2,458.28 ",Information Management Services,SME,Programme Expenditure,,
UK Statistics Family,Office for National Statistics,11/06/2021,Exp - Short-Term Contract & Agency Staff - Full Cost,HALE,Talent International,203488," 3,025.00 ",Information Management Services,SME,Programme Expenditure,,
UK Statistics Family,Office for National Statistics,11/06/2021,Exp - Purchase Of Goods/Services - Contractors,Digital Publishing,Talent International,203488," 13,260.00 ",Information Management Services,SME,Programme Expenditure,,
UK Statistics Family,Office for National Statistics,11/06/2021,Exp - Short-Term Contract & Agency Staff - Full Cost,Strategy And Engagement,Talent International,203488," 1,695.01 ",Information Management Services,SME,Programme Expenditure,,
UK Statistics Family,Office for National Statistics,11/06/2021,Exp - Purchase Of Goods/Services - Contractors,Finance,Talent International,203488," 12,540.00 ",Information Management Services,SME,Programme Expenditure,,
UK Statistics Family,Office for National Statistics,11/06/2021,Exp - Purchase Of Goods/Services - Contractors,Researcher Support And Data Access ,Talent International,203488," 14,820.00 ",Information Management Services,SME,Programme Expenditure,,
UK Statistics Family,Office for National Statistics,11/06/2021,Exp - Short-Term Contract & Agency Staff - Full Cost,Data Architecture,Talent International,203488, 737.48 ,Information Management Services,SME,Programme Expenditure,,
UK Statistics Family,Office for National Statistics,11/06/2021,Exp - Purchase Of Goods/Services - Contractors,Data Architecture,Talent International,203488," 12,540.00 ",Information Management Services,SME,Programme Expenditure,,
UK Statistics Family,Office for National Statistics,11/06/2021,Exp - Purchase Of Goods/Services - Contractors,Data Architecture,Talent International,203488," 23,424.00 ",Information Management Services,SME,Programme Expenditure,,
UK Statistics Family,Office for National Statistics,11/06/2021,Exp - Purchase Of Goods/Services - Contractors,Data Architecture,Talent International,203488," 13,657.20 ",Information Management Services,SME,Programme Expenditure,,
UK Statistics Family,Office for National Statistics,11/06/2021,Exp - Purchase Of Goods/Services - Contractors,CDIO UNGP,Talent International,203488," 14,820.00 ",Information Management Services,SME,Programme Expenditure,,
UK Statistics Family,Office for National Statistics,11/06/2021,Exp - Purchase Of Goods/Services - Contractors,Strategy And Architecture,Talent International,203488," 3,000.00 ",Information Management Services,SME,Programme Expenditure,,
UK Statistics Family,Office for National Statistics,11/06/2021,Exp - Purchase Of Goods/Services - Contractors,Tech Delivery Legacy Sp,Talent International,203488," 13,679.77 ",Information Management Services,SME,Programme Expenditure,,
UK Statistics Family,Office for National Statistics,11/06/2021,Exp - Purchase Of Goods/Services - Contractors,Tech Delivery Legacy Sp,Talent International,203488," 14,820.00 ",Information Management Services,SME,Programme Expenditure,,
UK Statistics Family,Office for National Statistics,11/06/2021,Exp - Purchase Of Goods/Services - Contractors,Tech Delivery Data As A Platform,Talent International,203488," 13,679.77 ",Information Management Services,SME,Programme Expenditure,,
UK Statistics Family,Office for National Statistics,11/06/2021,Exp - Purchase Of Goods/Services - Contractors,IT Applications,Talent International,203488," 40,717.00 ",Information Management Services,SME,Programme Expenditure,,
UK Statistics Family,Office for National Statistics,11/06/2021,Exp - Purchase Of Goods/Services - Contractors,Digital Delivery,Talent International,203488," 21,204.60 ",Information Management Services,SME,Programme Expenditure,,
UK Statistics Family,Office for National Statistics,11/06/2021,Exp - Purchase Of Goods/Services - Contractors,Digital Delivery,Talent International,203488," 11,491.20 ",Information Management Services,SME,Programme Expenditure,,
UK Statistics Family,Office for National Statistics,11/06/2021,Exp - Short-Term Contract & Agency Staff - Full Cost,Survey Processing Centre,Talent International,203488," 2,760.59 ",Information Management Services,SME,Programme Expenditure,,
UK Statistics Family,Office for National Statistics,11/06/2021,Exp - Short-Term Contract & Agency Staff - Full Cost,Social Surveys Division,Talent International,203488," 3,968.40 ",Information Management Services,SME,Programme Expenditure,,
UK Statistics Family,Office for National Statistics,11/06/2021,Exp - Purchase Of Goods/Services - Contractors,Census Planning And Monitoring,SmartSourcing Ltd,203492," 16,329.31 ",Information Management Services,SME,Programme Expenditure,,
UK Statistics Family,Office for National Statistics,11/06/2021,Exp - Purchase Of Goods/Services - Contractors,Programme Support,SmartSourcing Ltd,203492," 10,912.84 ",Information Management Services,SME,Programme Expenditure,,
UK Statistics Family,Office for National Statistics,11/06/2021,Exp - Purchase Of Goods And Services Consultants,Business Architecture Transformation And Statistical Strategy,SmartSourcing Ltd,203492," 13,095.41 ",Information Management Services,SME,Programme Expenditure,,
UK Statistics Family,Office for National Statistics,11/06/2021,Exp - Purchase Of Goods/Services - IT Contractual Services,CLOUD ARCHITECTURE,SmartSourcing Ltd,203492," 9,062.59 ",Information Management Services,SME,Programme Expenditure,,
UK Statistics Family,Office for National Statistics,11/06/2021,Exp - Purchase Of Goods/Services - Contractors,Tech Delivery Data As A Platform,SmartSourcing Ltd,203492," 7,200.00 ",Information Management Services,SME,Programme Expenditure,,
UK Statistics Family,Office for National Statistics,11/06/2021,Exp - Purchase Of Goods/Services - Contractors,IT Applications,SmartSourcing Ltd,203492," 7,192.32 ",Information Management Services,SME,Programme Expenditure,,
UK Statistics Family,Office for National Statistics,11/06/2021,Exp - Purchase Of Goods/Services - Contractors,Data As A Service,SmartSourcing Ltd,203492," 13,665.41 ",Information Management Services,SME,Programme Expenditure,,
UK Statistics Family,Office for National Statistics,11/06/2021,Exp - Short-Term Contract & Agency Staff - Full Cost,Interviewer Management TU,SmartSourcing Ltd,203492," 2,333.71 ",Information Management Services,SME,Programme Expenditure,,
UK Statistics Family,Office for National Statistics,14/06/2021,IT Management And Change,IT Operations,Centerprise International Ltd,203497," 231,357.60 ",Computers and Peripherals,Large,Programme Expenditure,,
UK Statistics Family,Office for National Statistics,14/06/2021,Exp - Purchase Of Goods/Services - Contractors,Business Architecture,La International,203498," 6,450.36 ",Information Management Services,SME,Programme Expenditure,,
UK Statistics Family,Office for National Statistics,14/06/2021,Exp - Purchase Of Goods/Services - Contractors,Testing,La International,203498," 19,158.97 ",Information Management Services,SME,Programme Expenditure,,
UK Statistics Family,Office for National Statistics,14/06/2021,Exp - Purchase Of Goods/Services - Contractors,Testing,La International,203498," 5,206.25 ",Information Management Services,SME,Programme Expenditure,,
UK Statistics Family,Office for National Statistics,14/06/2021,Exp - Purchase Of Goods/Services - Contractors,HALE,La International,203498," 1,931.00 ",Information Management Services,SME,Programme Expenditure,,
UK Statistics Family,Office for National Statistics,14/06/2021,Exp - Purchase Of Goods/Services - Contractors,Security Advisory,La International,203498," 3,470.85 ",Information Management Services,SME,Programme Expenditure,,
UK Statistics Family,Office for National Statistics,14/06/2021,Exp - Purchase Of Goods And Services Consultants,Security Operations,La International,203498," 6,407.76 ",Information Management Services,SME,Programme Expenditure,,
UK Statistics Family,Office for National Statistics,14/06/2021,Exp - Purchase Of Goods/Services - Contractors,INTEGRATED DATA STRATEGY AND DELIVERY,La International,203498," 3,450.00 ",Information Management Services,SME,Programme Expenditure,,
UK Statistics Family,Office for National Statistics,14/06/2021,Exp - Purchase Of Goods/Services - Contractors,Data Architecture,La International,203498," 3,588.30 ",Information Management Services,SME,Programme Expenditure,,
UK Statistics Family,Office for National Statistics,14/06/2021,Exp - Purchase Of Goods/Services - Contractors,Data Architecture,La International,203498," 3,524.22 ",Information Management Services,SME,Programme Expenditure,,
UK Statistics Family,Office for National Statistics,14/06/2021,Exp - Purchase Of Goods/Services - Contractors,Data Architecture,La International,203498," 10,316.40 ",Information Management Services,SME,Programme Expenditure,,
UK Statistics Family,Office for National Statistics,14/06/2021,Exp - Purchase Of Goods/Services - Contractors,Data Architecture,La International,203498," 3,524.22 ",Information Management Services,SME,Programme Expenditure,,
UK Statistics Family,Office for National Statistics,14/06/2021,Exp - Purchase Of Goods/Services - Contractors,CLOUD ARCHITECTURE,La International,203498," 3,844.62 ",Information Management Services,SME,Programme Expenditure,,
UK Statistics Family,Office for National Statistics,14/06/2021,Exp - Purchase Of Goods/Services - Contractors,Tech Delivery Legacy Sp,La International,203498," 17,044.60 ",Information Management Services,SME,Programme Expenditure,,
UK Statistics Family,Office for National Statistics,14/06/2021,Exp - Purchase Of Goods/Services - Contractors,Tech Delivery Legacy Sp,La International,203498," 14,096.88 ",Information Management Services,SME,Programme Expenditure,,
UK Statistics Family,Office for National Statistics,14/06/2021,Exp - Purchase Of Goods/Services - Contractors,Tech Delivery Data As A Platform,La International,203498," 24,400.44 ",Information Management Services,SME,Programme Expenditure,,
UK Statistics Family,Office for National Statistics,14/06/2021,Exp - Purchase Of Goods/Services - Contractors,Digital Delivery,La International,203498," 13,456.26 ",Information Management Services,SME,Programme Expenditure,,
UK Statistics Family,Office for National Statistics,14/06/2021,Exp - Purchase Of Goods/Services - Contractors,Digital Delivery,La International,203498," 11,533.86 ",Information Management Services,SME,Programme Expenditure,,
UK Statistics Family,Office for National Statistics,14/06/2021,Exp - Purchase Of Goods/Services - Contractors,Digital Delivery,La International,203498," 7,900.20 ",Information Management Services,SME,Programme Expenditure,,
UK Statistics Family,Office for National Statistics,14/06/2021,Exp - Purchase Of Goods/Services - Contractors,Digital Delivery,La International,203498," 13,635.54 ",Information Management Services,SME,Programme Expenditure,,
UK Statistics Family,Office for National Statistics,14/06/2021,Exp - Purchase Of Goods/Services - Contractors,Digital Delivery,La International,203498," 16,506.18 ",Information Management Services,SME,Programme Expenditure,,
UK Statistics Family,Office for National Statistics,14/06/2021,Exp - Purchase Of Goods/Services - Contractors,Data As A Service,La International,203498," 8,009.64 ",Information Management Services,SME,Programme Expenditure,,
UK Statistics Family,Office for National Statistics,14/06/2021,Exp - Short-Term Contract & Agency Staff - Full Cost,Social Survey Transformation Titchfield,La International,203498, 777.00 ,Information Management Services,SME,Programme Expenditure,,
UK Statistics Family,Office for National Statistics,14/06/2021,Exp - Purchase Of Goods/Services - Contractors,Social Survey Transformation Titchfield,La International,203498," 3,702.20 ",Information Management Services,SME,Programme Expenditure,,
UK Statistics Family,Office for National Statistics,14/06/2021,Exp - Short-Term Contract & Agency Staff - Full Cost,Census CCS Data Collection,Malikshaw Interim & Executive,203502, 684.80 ,Information Management Services,SME,Programme Expenditure,,
UK Statistics Family,Office for National Statistics,14/06/2021,Exp - Purchase Of Goods/Services - Contractors,Data Architecture,Malikshaw Interim & Executive,203502," 13,081.04 ",Information Management Services,SME,Programme Expenditure,,
UK Statistics Family,Office for National Statistics,14/06/2021,Exp - Purchase Of Goods/Services - Contractors,Data As A Service,Malikshaw Interim & Executive,203502," 16,028.40 ",Information Management Services,SME,Programme Expenditure,,
UK Statistics Family,Office for National Statistics,14/06/2021,Exp - Purchase Of Goods/Services - Contractors,Business Architecture,LA FOSSE ASSOCIATES LIMITED,203508," 29,459.94 ",Information Management Services,Large,Programme Expenditure,,
UK Statistics Family,Office for National Statistics,14/06/2021,Exp - Purchase Of Goods/Services - Contractors,Business Architecture,LA FOSSE ASSOCIATES LIMITED,203508," 2,200.00 ",Information Management Services,Large,Programme Expenditure,,
UK Statistics Family,Office for National Statistics,14/06/2021,Exp - Purchase Of Goods/Services - Contractors,Testing,LA FOSSE ASSOCIATES LIMITED,203508," 3,000.00 ",Information Management Services,Large,Programme Expenditure,,
UK Statistics Family,Office for National Statistics,14/06/2021,Exp - Purchase Of Goods/Services - Contractors,Operations,LA FOSSE ASSOCIATES LIMITED,203508," 3,300.00 ",Information Management Services,Large,Programme Expenditure,,
UK Statistics Family,Office for National Statistics,14/06/2021,Exp - Purchase Of Goods/Services - Contractors,Consultancy Management,LA FOSSE ASSOCIATES LIMITED,203508," 5,790.00 ",Information Management Services,Large,Programme Expenditure,,
UK Statistics Family,Office for National Statistics,14/06/2021,Exp - Purchase Of Goods/Services - Contractors,Programme Support,LA FOSSE ASSOCIATES LIMITED,203508," 2,750.00 ",Information Management Services,Large,Programme Expenditure,,
UK Statistics Family,Office for National Statistics,14/06/2021,Exp - Purchase Of Goods/Services - Contractors,WIDER SURVEILLANCE STUDIES,LA FOSSE ASSOCIATES LIMITED,203508," 3,000.00 ",Information Management Services,Large,Programme Expenditure,,
UK Statistics Family,Office for National Statistics,14/06/2021,Exp - Purchase Of Goods/Services - Contractors,Digital Publishing,LA FOSSE ASSOCIATES LIMITED,203508," 3,600.00 ",Information Management Services,Large,Programme Expenditure,,
UK Statistics Family,Office for National Statistics,14/06/2021,Exp - Purchase Of Goods/Services - Contractors,Researcher Support And Data Access ,LA FOSSE ASSOCIATES LIMITED,203508," 1,890.00 ",Information Management Services,Large,Programme Expenditure,,
UK Statistics Family,Office for National Statistics,14/06/2021,Exp - Purchase Of Goods/Services - Contractors,INTEGRATED DATA STRATEGY AND DELIVERY,LA FOSSE ASSOCIATES LIMITED,203508," 3,450.00 ",Information Management Services,Large,Programme Expenditure,,
UK Statistics Family,Office for National Statistics,14/06/2021,Exp - Purchase Of Goods/Services - Contractors,Data Architecture,LA FOSSE ASSOCIATES LIMITED,203508," 3,450.00 ",Information Management Services,Large,Programme Expenditure,,
UK Statistics Family,Office for National Statistics,14/06/2021,Exp - Purchase Of Goods/Services - Contractors,Tech Delivery Legacy Sp,LA FOSSE ASSOCIATES LIMITED,203508," 2,160.00 ",Information Management Services,Large,Programme Expenditure,,
UK Statistics Family,Office for National Statistics,14/06/2021,Exp - Purchase Of Goods/Services - Contractors,Tech Delivery Legacy Sp,LA FOSSE ASSOCIATES LIMITED,203508," 3,600.00 ",Information Management Services,Large,Programme Expenditure,,
UK Statistics Family,Office for National Statistics,14/06/2021,Exp - Purchase Of Goods/Services - Contractors,Tech Delivery Legacy Sp,LA FOSSE ASSOCIATES LIMITED,203508," 3,600.00 ",Information Management Services,Large,Programme Expenditure,,
UK Statistics Family,Office for National Statistics,14/06/2021,Exp - Purchase Of Goods/Services - Contractors,IT Applications,LA FOSSE ASSOCIATES LIMITED,203508," 3,600.00 ",Information Management Services,Large,Programme Expenditure,,
UK Statistics Family,Office for National Statistics,14/06/2021,Exp - Purchase Of Goods/Services - Contractors,Data As A Service,LA FOSSE ASSOCIATES LIMITED,203508," 3,600.00 ",Information Management Services,Large,Programme Expenditure,,
UK Statistics Family,Office for National Statistics,14/06/2021,"ICT Outsourcing, Maintenance And Support",IT Operations,Cdw Limited,203510," 29,554.70 ",Software Licenses,Large,Programme Expenditure,,
UK Statistics Family,Office for National Statistics,15/06/2021,Exp - Purchase Of Goods/Services - IT Contractual Services,Strategy And Architecture,Empiric Solutions Limited,203599," 60,840.00 ",Information Management Services,Large,Programme Expenditure,,
UK Statistics Family,Office for National Statistics,15/06/2021,Exp - Purchase Of Goods/Services - Contractors,IT Operations,Empiric Solutions Limited,203599," 1,560.00 ",Information Management Services,Large,Programme Expenditure,,
UK Statistics Family,Office for National Statistics,15/06/2021,Exp - Purchase Of Goods/Services - IT Contractual Services,Strategy And Architecture,Ibm United Kingdom Ltd,203603," 43,503.36 ",Information Management Services,Large,Programme Expenditure,,
UK Statistics Family,Office for National Statistics,15/06/2021,Specialist User Software And Hardware,Finance,Phoenix Software Ltd,203604," 203,712.00 ",Software Licenses,SME,Programme Expenditure,,
UK Statistics Family,Office for National Statistics,15/06/2021,Specialist User Software And Hardware,Finance,Softcat,203605," 143,255.70 ",Software Licenses,SME,Programme Expenditure,,
UK Statistics Family,Office for National Statistics,15/06/2021,Exp - Purchase Of Goods/Services - Contractors,MDR Management,Certes Computing Ltd,203607," 13,318.67 ",Information Management Services,SME,Programme Expenditure,,
UK Statistics Family,Office for National Statistics,15/06/2021,Exp - Purchase Of Goods/Services - Contractors,Data Architecture,Certes Computing Ltd,203607," 15,211.93 ",Information Management Services,SME,Programme Expenditure,,
UK Statistics Family,Office for National Statistics,15/06/2021,Exp - Purchase Of Goods/Services - Contractors ,IT Operations,Certes Computing Ltd,203607," 1,010.40 ",Information Management Services,SME,Programme Expenditure,,
UK Statistics Family,Office for National Statistics,15/06/2021,Exp - Purchase Of Goods/Services - Contractors,Digital Delivery,Certes Computing Ltd,203607," 10,343.82 ",Information Management Services,SME,Programme Expenditure,,
UK Statistics Family,Office for National Statistics,15/06/2021,Exp - Short-Term Contract & Agency Staff - Full Cost,Census CCS Data Collection,Malikshaw Interim & Executive,203614," 5,855.96 ",Information Management Services,SME,Programme Expenditure,,
UK Statistics Family,Office for National Statistics,15/06/2021,Exp - Purchase Of Goods/Services - Contractors,Data Architecture,Malikshaw Interim & Executive,203614," 7,200.00 ",Information Management Services,SME,Programme Expenditure,,
UK Statistics Family,Office for National Statistics,15/06/2021,Exp - Purchase Of Goods/Services - Contractors,Strategy And Architecture,Malikshaw Interim & Executive,203614," 13,063.94 ",Information Management Services,SME,Programme Expenditure,,
UK Statistics Family,Office for National Statistics,15/06/2021,Exp - Purchase Of Goods/Services - Contractors,Data As A Service,Malikshaw Interim & Executive,203614," 13,063.94 ",Information Management Services,SME,Programme Expenditure,,
UK Statistics Family,Office for National Statistics,15/06/2021,Exp - Short-Term Contract & Agency Staff - Full Cost,Survey Management,Malikshaw Interim & Executive,203614, 244.80 ,Information Management Services,SME,Programme Expenditure,,
UK Statistics Family,Office for National Statistics,15/06/2021,Exp - Purchase Of Goods/Services - Contractors,Social Surveys Division,Malikshaw Interim & Executive,203614," 5,156.76 ",Information Management Services,SME,Programme Expenditure,,
UK Statistics Family,Office for National Statistics,15/06/2021,EXP - PURCHASE OF GOODS/SERVICES -  NON IT CONTRACTUAL PAYMENTS,Stakeholder Engagement And Comms,Talent International,203616," 3,141.74 ",Information Management Services,SME,Programme Expenditure,,
UK Statistics Family,Office for National Statistics,15/06/2021,Exp - Short-Term Contract & Agency Staff - Full Cost,Census CCS Data Collection,Talent International,203616," 6,131.54 ",Information Management Services,SME,Programme Expenditure,,
UK Statistics Family,Office for National Statistics,15/06/2021,Exp - Short-Term Contract & Agency Staff - Full Cost,Census CCS Data Collection,Talent International,203616," 7,515.43 ",Information Management Services,SME,Programme Expenditure,,
UK Statistics Family,Office for National Statistics,15/06/2021,Exp - Short-Term Contract & Agency Staff - Full Cost,Operations,Talent International,203616," 7,587.00 ",Information Management Services,SME,Programme Expenditure,,
UK Statistics Family,Office for National Statistics,15/06/2021,Exp - Short-Term Contract & Agency Staff - Full Cost,Data Architecture,Talent International,203616," 1,036.52 ",Information Management Services,SME,Programme Expenditure,,
UK Statistics Family,Office for National Statistics,15/06/2021,Exp - Purchase Of Goods/Services - Contractors,Data Architecture,Talent International,203616," 16,356.00 ",Information Management Services,SME,Programme Expenditure,,
UK Statistics Family,Office for National Statistics,15/06/2021,Exp - Purchase Of Goods/Services - Contractors,Tech Delivery Next Gen IT And Infrastructure,Talent International,203616," 9,000.00 ",Information Management Services,SME,Programme Expenditure,,
UK Statistics Family,Office for National Statistics,15/06/2021,EXP - PURCHASE OF GOODS/SERVICES -  NON IT CONTRACTUAL PAYMENTS,Divisional Management,Talent International,203616, 424.56 ,Information Management Services,SME,Programme Expenditure,,
UK Statistics Family,Office for National Statistics,15/06/2021,Other Goods And Services,2023 CENSUS DATA TRANSFORMATION,The Sensible Code Company,203619," 115,200.00 ",Statistical Services,SME,Programme Expenditure,,
UK Statistics Family,Office for National Statistics,15/06/2021,End User Software And Hardware,IT Operations,Insight Direct,203624," 48,711.35 ",Software Licenses,Large,Programme Expenditure,,
UK Statistics Family,Office for National Statistics,15/06/2021,Exp - Purchase Of Goods/Services - IT Contractual Services,CLOUD ARCHITECTURE,Akamai Technologies Limited,203626," 36,200.00 ",Information Management Services,SME,Programme Expenditure,,
UK Statistics Family,Office for National Statistics,16/06/2021,Buildings Under Construction,Property Titchfield,Vinci Construction UK Limited,203837," 45,421.44 ",Facilities Mangement Services,Large,Programme Expenditure,,
UK Statistics Family,Office for National Statistics,16/06/2021,Exp - Short-Term Contract & Agency Staff - Full Cost,Business Change Support,Concept Information Technology Ltd T/A Concept Resourcing,203838," 5,680.48 ",Information Management Services,Large,Programme Expenditure,,
UK Statistics Family,Office for National Statistics,16/06/2021,Exp - Short-Term Contract & Agency Staff - Full Cost,Business Change Support,Concept Information Technology Ltd T/A Concept Resourcing,203838," 9,671.38 ",Information Management Services,Large,Programme Expenditure,,
UK Statistics Family,Office for National Statistics,16/06/2021,Exp - Short-Term Contract & Agency Staff - Full Cost,Business Change Support,Concept Information Technology Ltd T/A Concept Resourcing,203838," 9,362.35 ",Information Management Services,Large,Programme Expenditure,,
UK Statistics Family,Office for National Statistics,16/06/2021,Exp - Short-Term Contract & Agency Staff - Full Cost,Business Change Support,Concept Information Technology Ltd T/A Concept Resourcing,203838," 2,199.22 ",Information Management Services,Large,Programme Expenditure,,
UK Statistics Family,Office for National Statistics,16/06/2021,Exp - Short-Term Contract & Agency Staff - Full Cost,N A Coordination,Concept Information Technology Ltd T/A Concept Resourcing,203838," 2,014.87 ",Information Management Services,Large,Programme Expenditure,,
UK Statistics Family,Office for National Statistics,16/06/2021,Exp - Short-Term Contract & Agency Staff - Full Cost,Productivity Research And Professional Development,Concept Information Technology Ltd T/A Concept Resourcing,203838," 3,669.06 ",Information Management Services,Large,Programme Expenditure,,
UK Statistics Family,Office for National Statistics,16/06/2021,Exp - Short-Term Contract & Agency Staff - Full Cost,Productivity Research And Professional Development,Concept Information Technology Ltd T/A Concept Resourcing,203838," 3,676.27 ",Information Management Services,Large,Programme Expenditure,,
UK Statistics Family,Office for National Statistics,16/06/2021,Exp - Purchase Of Goods And Services Consultants,Productivity Research And Professional Development,Concept Information Technology Ltd T/A Concept Resourcing,203838, 326.74 ,Information Management Services,Large,Programme Expenditure,,
UK Statistics Family,Office for National Statistics,16/06/2021,Exp - Purchase Of Goods/Services - Contractors,Business Architecture Transformation And Statistical Strategy,Concept Information Technology Ltd T/A Concept Resourcing,203838," 14,647.50 ",Information Management Services,Large,Programme Expenditure,,
UK Statistics Family,Office for National Statistics,16/06/2021,Exp - Purchase Of Goods/Services - Contractors,Census & Soc Methodology Dd,Concept Information Technology Ltd T/A Concept Resourcing,203838," 10,044.00 ",Information Management Services,Large,Programme Expenditure,,
UK Statistics Family,Office for National Statistics,16/06/2021,Exp - Short-Term Contract & Agency Staff - Full Cost,Public Sector And Households,Concept Information Technology Ltd T/A Concept Resourcing,203838," 7,750.27 ",Information Management Services,Large,Programme Expenditure,,
UK Statistics Family,Office for National Statistics,16/06/2021,Exp - Short-Term Contract & Agency Staff - Full Cost,Public Sector And Households,Concept Information Technology Ltd T/A Concept Resourcing,203838," 4,681.31 ",Information Management Services,Large,Programme Expenditure,,
UK Statistics Family,Office for National Statistics,16/06/2021,Exp - Short-Term Contract & Agency Staff - Full Cost,Prices Division,Concept Information Technology Ltd T/A Concept Resourcing,203838," 10,002.22 ",Information Management Services,Large,Programme Expenditure,,
UK Statistics Family,Office for National Statistics,16/06/2021,Exp - Short-Term Contract & Agency Staff - Full Cost,Business Outputs And Developments,Concept Information Technology Ltd T/A Concept Resourcing,203838," 1,007.44 ",Information Management Services,Large,Programme Expenditure,,
UK Statistics Family,Office for National Statistics,16/06/2021,"ICT Outsourcing, Maintenance And Support",IT Operations,Lexmark International Ltd,203841," 29,760.00 ",Information Management Services,Large,Programme Expenditure,,
UK Statistics Family,Office for National Statistics,16/06/2021,"ICT Outsourcing, Maintenance And Support",Senior Management Team Design,Totalmobile Ltd,203847," 344,884.80 ",Information Management Services,SME,Programme Expenditure,,
UK Statistics Family,Office for National Statistics,16/06/2021,Exp - Short-Term Contract & Agency Staff - Full Cost,Census CCS Data Collection,Malikshaw Interim & Executive,203850," 4,201.37 ",Information Management Services,SME,Programme Expenditure,,
UK Statistics Family,Office for National Statistics,16/06/2021,Exp - Purchase Of Goods/Services - Contractors,Digital Delivery,Malikshaw Interim & Executive,203850," 13,063.94 ",Information Management Services,SME,Programme Expenditure,,
UK Statistics Family,Office for National Statistics,16/06/2021,Exp - Purchase Of Goods/Services - Contractors,Digital Delivery,Malikshaw Interim & Executive,203850," 9,626.06 ",Information Management Services,SME,Programme Expenditure,,
UK Statistics Family,Office for National Statistics,16/06/2021,EXP - PURCHASE OF GOODS/SERVICES -  NON IT CONTRACTUAL PAYMENTS,Data Collection Service,Leidos Innovations UK Limited,203851," 2,669,121.89 ",Questionnaire Management,Large,Programme Expenditure,,
UK Statistics Family,Office for National Statistics,16/06/2021,Hosting,IT Operations,Amazon Web Services Inc,203853," 127,935.32 ",Information Management Services,Large,Programme Expenditure,,
UK Statistics Family,Office for National Statistics,16/06/2021,Exp - Purchase Of Goods/Services - Contractors,Testing,Parity Resources Limited,203855," 6,632.28 ",Information Management Services,Large,Programme Expenditure,,
UK Statistics Family,Office for National Statistics,16/06/2021,Exp - Short-Term Contract & Agency Staff - Full Cost,Census CCS Data Collection,Parity Resources Limited,203855, 955.80 ,Information Management Services,Large,Programme Expenditure,,
UK Statistics Family,Office for National Statistics,16/06/2021,Exp - Purchase Of Goods/Services - Contractors,Census CCS Data Collection,Parity Resources Limited,203855," 5,280.00 ",Information Management Services,Large,Programme Expenditure,,
UK Statistics Family,Office for National Statistics,16/06/2021,Exp - Purchase Of Goods/Services - Contractors,Security Advisory,Parity Resources Limited,203855," 11,021.76 ",Information Management Services,Large,Programme Expenditure,,
UK Statistics Family,Office for National Statistics,16/06/2021,Exp - Short-Term Contract & Agency Staff - Full Cost,Data Architecture,Parity Resources Limited,203855, 732.60 ,Information Management Services,Large,Programme Expenditure,,
UK Statistics Family,Office for National Statistics,16/06/2021,Exp - Purchase Of Goods/Services - Contractors,Data Architecture,Parity Resources Limited,203855," 3,592.56 ",Information Management Services,Large,Programme Expenditure,,
UK Statistics Family,Office for National Statistics,16/06/2021,Exp - Purchase Of Goods/Services - Contractors,IT Applications,Parity Resources Limited,203855," 12,079.08 ",Information Management Services,Large,Programme Expenditure,,
UK Statistics Family,Office for National Statistics,16/06/2021,Exp - Short-Term Contract & Agency Staff - Full Cost,Digital Delivery,Parity Resources Limited,203855, 605.34 ,Information Management Services,Large,Programme Expenditure,,
UK Statistics Family,Office for National Statistics,16/06/2021,Exp - Purchase Of Goods/Services - Contractors,Digital Delivery,Parity Resources Limited,203855," 7,176.96 ",Information Management Services,Large,Programme Expenditure,,
UK Statistics Family,Office for National Statistics,16/06/2021,Exp - Purchase Of Goods/Services - Contractors,Digital Delivery,Parity Resources Limited,203855," 7,176.96 ",Information Management Services,Large,Programme Expenditure,,
UK Statistics Family,Office for National Statistics,16/06/2021,Exp - Purchase Of Goods/Services - Contractors,Digital Delivery,Parity Resources Limited,203855," 7,176.96 ",Information Management Services,Large,Programme Expenditure,,
UK Statistics Family,Office for National Statistics,16/06/2021,Surveys,Covid Infection Survey,IQVIA Limited,203857," 11,151,563.78 ",Statistical Services,Large,Programme Expenditure,,
UK Statistics Family,Office for National Statistics,17/06/2021,Exp - Purchase Of Goods/Services - IT Contractual Services,CLOUD ARCHITECTURE,E Synergy Solutions,203863," 27,360.00 ",Information Management Services,SME,Programme Expenditure,,
UK Statistics Family,Office for National Statistics,17/06/2021,Exp - Purchase Of Goods/Services - IT Contractual Services,Strategy And Architecture,E Synergy Solutions,203863," 35,100.00 ",Information Management Services,SME,Programme Expenditure,,
UK Statistics Family,Office for National Statistics,17/06/2021,Exp - Purchase Of Goods/Services - IT Contractual Services,Strategy And Architecture,E Synergy Solutions,203863," 31,356.00 ",Information Management Services,SME,Programme Expenditure,,
UK Statistics Family,Office for National Statistics,17/06/2021,Exp - Purchase Of Goods/Services - IT Contractual Services,Tech Delivery Legacy Sp,E Synergy Solutions,203863," 142,728.00 ",Information Management Services,SME,Programme Expenditure,,
UK Statistics Family,Office for National Statistics,17/06/2021,Exp - Purchase Of Goods/Services - IT Contractual Services,Tech Delivery Next Gen IT And Infrastructure,E Synergy Solutions,203863," 27,360.00 ",Information Management Services,SME,Programme Expenditure,,
UK Statistics Family,Office for National Statistics,17/06/2021,Exp - Purchase Of Goods/Services - IT Contractual Services,Strategy And Architecture,Empiric Solutions Limited,203864," 58,890.00 ",Information Management Services,Large,Programme Expenditure,,
UK Statistics Family,Office for National Statistics,17/06/2021,Exp - Short-Term Contract & Agency Staff - Full Cost,Business Change Support,Concept Information Technology Ltd T/A Concept Resourcing,203865," 5,983.74 ",Information Management Services,Large,Programme Expenditure,,
UK Statistics Family,Office for National Statistics,17/06/2021,Exp - Short-Term Contract & Agency Staff - Full Cost,Business Change Support,Concept Information Technology Ltd T/A Concept Resourcing,203865," 10,678.82 ",Information Management Services,Large,Programme Expenditure,,
UK Statistics Family,Office for National Statistics,17/06/2021,Exp - Short-Term Contract & Agency Staff - Full Cost,Business Change Support,Concept Information Technology Ltd T/A Concept Resourcing,203865," 2,014.87 ",Information Management Services,Large,Programme Expenditure,,
UK Statistics Family,Office for National Statistics,17/06/2021,Exp - Short-Term Contract & Agency Staff - Full Cost,Business Change Support,Concept Information Technology Ltd T/A Concept Resourcing,203865," 2,014.87 ",Information Management Services,Large,Programme Expenditure,,
UK Statistics Family,Office for National Statistics,17/06/2021,Exp - Short-Term Contract & Agency Staff - Full Cost,Business Statistics Transformation,Concept Information Technology Ltd T/A Concept Resourcing,203865," 3,770.09 ",Information Management Services,Large,Programme Expenditure,,
UK Statistics Family,Office for National Statistics,17/06/2021,Exp - Short-Term Contract & Agency Staff - Full Cost,Business Statistics Transformation,Concept Information Technology Ltd T/A Concept Resourcing,203865," 2,984.65 ",Information Management Services,Large,Programme Expenditure,,
UK Statistics Family,Office for National Statistics,17/06/2021,"ICT Outsourcing, Maintenance And Support",IT Operations,Stone Computers,203870," 168,000.00 ",Computers and Peripherals,Large,Programme Expenditure,,
UK Statistics Family,Office for National Statistics,17/06/2021,EXP - PURCHASE OF GOODS/SERVICES -  NON IT CONTRACTUAL PAYMENTS,Data Collection Service,HH Associates Ltd,203883," 118,089.12 ",Print and Post Services,SME,Programme Expenditure,,
UK Statistics Family,Office for National Statistics,17/06/2021,Surveys,Crime Statistics,Kantar UK Ltd,203884," 261,230.20 ",Statistical Services,Large,Programme Expenditure,,
UK Statistics Family,Office for National Statistics,17/06/2021,Marketing & Media,Stakeholder Engagement And Comms,Manning Gottlieb,203885," 74,617.79 ",Marketing Services,Large,Programme Expenditure,,
UK Statistics Family,Office for National Statistics,17/06/2021,Exp - Purchase Of Goods/Services - Contractors,Testing,Parity Resources Limited,203889," 22,247.96 ",Information Management Services,Large,Programme Expenditure,,
UK Statistics Family,Office for National Statistics,17/06/2021,Exp - Short-Term Contract & Agency Staff - Full Cost,Census CCS Data Collection,Parity Resources Limited,203889, 657.38 ,Information Management Services,Large,Programme Expenditure,,
UK Statistics Family,Office for National Statistics,17/06/2021,Exp - Short-Term Contract & Agency Staff - Full Cost,Census CCS Data Collection,Parity Resources Limited,203889, 594.00 ,Information Management Services,Large,Programme Expenditure,,
UK Statistics Family,Office for National Statistics,17/06/2021,Exp - Purchase Of Goods/Services - Contractors,Census CCS Data Collection,Parity Resources Limited,203889," 4,950.00 ",Information Management Services,Large,Programme Expenditure,,
UK Statistics Family,Office for National Statistics,17/06/2021,Exp - Purchase Of Goods/Services - Contractors,Programme Delivery,Parity Resources Limited,203889," 3,310.50 ",Information Management Services,Large,Programme Expenditure,,
UK Statistics Family,Office for National Statistics,17/06/2021,Exp - Purchase Of Goods/Services - Contractors,Programme Support,Parity Resources Limited,203889," 2,993.80 ",Information Management Services,Large,Programme Expenditure,,
UK Statistics Family,Office for National Statistics,17/06/2021,Exp - Purchase Of Goods/Services - Contractors,Covid Infection Survey,Parity Resources Limited,203889," 3,000.00 ",Information Management Services,Large,Programme Expenditure,,
UK Statistics Family,Office for National Statistics,17/06/2021,Exp - Purchase Of Goods And Services Consultants,Digital Publishing,Parity Resources Limited,203889," 13,636.22 ",Information Management Services,Large,Programme Expenditure,,
UK Statistics Family,Office for National Statistics,17/06/2021,Exp - Purchase Of Goods/Services - Contractors,Analysis Microdata And Engagement,Parity Resources Limited,203889," 1,281.60 ",Information Management Services,Large,Programme Expenditure,,
UK Statistics Family,Office for National Statistics,17/06/2021,Exp - Purchase Of Goods/Services - Contractors,Researcher Support And Data Access ,Parity Resources Limited,203889," 3,008.22 ",Information Management Services,Large,Programme Expenditure,,
UK Statistics Family,Office for National Statistics,17/06/2021,Exp - Short-Term Contract & Agency Staff - Full Cost,Recruitment ,Parity Resources Limited,203889, 732.60 ,Information Management Services,Large,Programme Expenditure,,
UK Statistics Family,Office for National Statistics,17/06/2021,Exp - Purchase Of Goods/Services - Contractors,Security Advisory,Parity Resources Limited,203889," 13,379.90 ",Information Management Services,Large,Programme Expenditure,,
UK Statistics Family,Office for National Statistics,17/06/2021,Exp - Short-Term Contract & Agency Staff - Full Cost,Data Architecture,Parity Resources Limited,203889, 732.60 ,Information Management Services,Large,Programme Expenditure,,
UK Statistics Family,Office for National Statistics,17/06/2021,Exp - Purchase Of Goods/Services - Contractors,IT Applications,Parity Resources Limited,203889," 9,182.66 ",Information Management Services,Large,Programme Expenditure,,
UK Statistics Family,Office for National Statistics,17/06/2021,Exp - Purchase Of Goods/Services - Contractors,Digital Delivery,Parity Resources Limited,203889," 6,459.26 ",Information Management Services,Large,Programme Expenditure,,
UK Statistics Family,Office for National Statistics,17/06/2021,Exp - Purchase Of Goods/Services - Contractors,Digital Delivery,Parity Resources Limited,203889," 2,870.78 ",Information Management Services,Large,Programme Expenditure,,
UK Statistics Family,Office for National Statistics,17/06/2021,Exp - Purchase Of Goods/Services - Contractors,Digital Delivery,Parity Resources Limited,203889," 5,023.87 ",Information Management Services,Large,Programme Expenditure,,
UK Statistics Family,Office for National Statistics,17/06/2021,Exp - Short-Term Contract & Agency Staff - Full Cost,Survey Processing Centre,Parity Resources Limited,203889, 732.60 ,Information Management Services,Large,Programme Expenditure,,
UK Statistics Family,Office for National Statistics,17/06/2021,Exp - Purchase Of Goods/Services - Incentive Payments,Survey Management,Sodexo Motivation Solutions U.K. ltd,203891," 23,106.40 ",Survey Response Incentive Vouchers,Large,Programme Expenditure,,
UK Statistics Family,Office for National Statistics,17/06/2021,Exp - Purchase Of Goods/Services - Incentive Payments,Survey Management,Sodexo Motivation Solutions U.K. ltd,203891," 3,744.00 ",Survey Response Incentive Vouchers,Large,Programme Expenditure,,
UK Statistics Family,Office for National Statistics,17/06/2021,Exp - Purchase Of Goods/Services - Incentive Payments,Survey Management,Sodexo Motivation Solutions U.K. ltd,203891," 2,427.40 ",Survey Response Incentive Vouchers,Large,Programme Expenditure,,
UK Statistics Family,Office for National Statistics,17/06/2021,Exp - Purchase Of Goods/Services - Incentive Payments,Survey Management,Sodexo Motivation Solutions U.K. ltd,203891," 2,565.20 ",Survey Response Incentive Vouchers,Large,Programme Expenditure,,
UK Statistics Family,Office for National Statistics,17/06/2021,Exp - Purchase Of Goods/Services - Incentive Payments,Survey Management,Sodexo Motivation Solutions U.K. ltd,203891," 119,419.20 ",Survey Response Incentive Vouchers,Large,Programme Expenditure,,
UK Statistics Family,Office for National Statistics,17/06/2021,Exp - Purchase Of Goods/Services - Incentive Payments,Social Survey Transformation Newport,Sodexo Motivation Solutions U.K. ltd,203891," 212,805.40 ",Survey Response Incentive Vouchers,Large,Programme Expenditure,,
UK Statistics Family,Office for National Statistics,18/06/2021,Exp - Purchase Of Goods/Services - IT Contractual Services,IT Operations,E Synergy Solutions,203998," 105,801.00 ",Information Management Services,SME,Programme Expenditure,,
UK Statistics Family,Office for National Statistics,18/06/2021,EXP - PURCHASE OF GOODS/SERVICES -  NON IT CONTRACTUAL PAYMENTS,Data Collection Service,Serco Ltd,204000," 2,482,488.02 ",Census Contact Centre,Large,Programme Expenditure,,
UK Statistics Family,Office for National Statistics,18/06/2021,Exp - Purchase Of Goods/Services - IT Contractual Services,IT Operations,CTS (Cloud Technology Solutions Ltd),204001," 140,204.40 ",DST Infrastructure Preparation,Large,Programme Expenditure,,
UK Statistics Family,Office for National Statistics,18/06/2021,Hosting,IT Operations,CTS (Cloud Technology Solutions Ltd),204001," 91,237.32 ",DST Infrastructure Preparation,Large,Programme Expenditure,,
UK Statistics Family,Office for National Statistics,18/06/2021,Hosting,IT Operations,CTS (Cloud Technology Solutions Ltd),204001," 230,341.24 ",DST Infrastructure Preparation,Large,Programme Expenditure,,
UK Statistics Family,Office for National Statistics,18/06/2021,Exp - Purchase Of Goods/Services - Contractors,Business Architecture,LA FOSSE ASSOCIATES LIMITED,204003," 17,200.00 ",Information Management Services,Large,Programme Expenditure,,
UK Statistics Family,Office for National Statistics,18/06/2021,Exp - Purchase Of Goods/Services - Contractors,Business Architecture,LA FOSSE ASSOCIATES LIMITED,204003," 4,825.00 ",Information Management Services,Large,Programme Expenditure,,
UK Statistics Family,Office for National Statistics,18/06/2021,Exp - Purchase Of Goods/Services - Contractors,Testing,LA FOSSE ASSOCIATES LIMITED,204003," 2,400.00 ",Information Management Services,Large,Programme Expenditure,,
UK Statistics Family,Office for National Statistics,18/06/2021,Exp - Purchase Of Goods/Services - Contractors,Consultancy Management,LA FOSSE ASSOCIATES LIMITED,204003," 5,160.00 ",Information Management Services,Large,Programme Expenditure,,
UK Statistics Family,Office for National Statistics,18/06/2021,Exp - Purchase Of Goods/Services - Contractors,Covid Infection Survey,LA FOSSE ASSOCIATES LIMITED,204003," 2,200.00 ",Information Management Services,Large,Programme Expenditure,,
UK Statistics Family,Office for National Statistics,18/06/2021,Exp - Purchase Of Goods/Services - Contractors,WIDER SURVEILLANCE STUDIES,LA FOSSE ASSOCIATES LIMITED,204003," 2,400.00 ",Information Management Services,Large,Programme Expenditure,,
UK Statistics Family,Office for National Statistics,18/06/2021,Exp - Purchase Of Goods/Services - Contractors,Data Architecture,LA FOSSE ASSOCIATES LIMITED,204003," 3,240.00 ",Information Management Services,Large,Programme Expenditure,,
UK Statistics Family,Office for National Statistics,18/06/2021,End User Software And Hardware,Census CCS Data Collection,Cdw Limited,204006," 8,964.00 ",Software Licenses,Large,Programme Expenditure,,
UK Statistics Family,Office for National Statistics,18/06/2021,"ICT Outsourcing, Maintenance And Support",IT Operations,Cdw Limited,204006," 20,115.56 ",Software Licenses,Large,Programme Expenditure,,
UK Statistics Family,Office for National Statistics,18/06/2021,Telecoms,IT Operations,Cdw Limited,204006," 6,213.60 ",Software Licenses,Large,Programme Expenditure,,
UK Statistics Family,Office for National Statistics,18/06/2021,End User Software And Hardware,IT Operations,Cdw Limited,204006," 95,914.80 ",Software Licenses,Large,Programme Expenditure,,
UK Statistics Family,Office for National Statistics,18/06/2021,Other Goods And Services,ONS Corporate Funds,Edenred (UK Group) Limited,204007," 25,100.00 ",Performance Reward Vouchers,Large,Programme Expenditure,,
UK Statistics Family,Office for National Statistics,18/06/2021,Non IT Maintenance And Hire,Property Services,Eaton Limited,204008," 28,995.00 ",Rental Charges,SME,Programme Expenditure,,
UK Statistics Family,Office for National Statistics,21/06/2021,FM Contract Payments,Corporate Centre,Vinci Construction UK Limited,204012," 61,208.07 ",Facilities Mangement Services,Large,Programme Expenditure,,
UK Statistics Family,Office for National Statistics,21/06/2021,Exp - Purchase Of Goods/Services - Contractors,Business Architecture,La International,204017," 4,089.84 ",Information Management Services,SME,Programme Expenditure,,
UK Statistics Family,Office for National Statistics,21/06/2021,Exp - Purchase Of Goods/Services - Contractors,Testing,La International,204017," 15,058.07 ",Information Management Services,SME,Programme Expenditure,,
UK Statistics Family,Office for National Statistics,21/06/2021,Exp - Purchase Of Goods/Services - Contractors,Testing,La International,204017," 4,165.00 ",Information Management Services,SME,Programme Expenditure,,
UK Statistics Family,Office for National Statistics,21/06/2021,Exp - Short-Term Contract & Agency Staff - Full Cost,Census CCS Data Collection,La International,204017," 1,394.64 ",Information Management Services,SME,Programme Expenditure,,
UK Statistics Family,Office for National Statistics,21/06/2021,Exp - Purchase Of Goods/Services - Contractors,HALE,La International,204017," 1,931.00 ",Information Management Services,SME,Programme Expenditure,,
UK Statistics Family,Office for National Statistics,21/06/2021,Exp - Purchase Of Goods/Services - Contractors,Data Architecture,La International,204017," 2,819.38 ",Information Management Services,SME,Programme Expenditure,,
UK Statistics Family,Office for National Statistics,21/06/2021,Exp - Purchase Of Goods/Services - Contractors,Data Architecture,La International,204017," 2,870.64 ",Information Management Services,SME,Programme Expenditure,,
UK Statistics Family,Office for National Statistics,21/06/2021,Exp - Purchase Of Goods/Services - Contractors,Data Architecture,La International,204017," 2,819.38 ",Information Management Services,SME,Programme Expenditure,,
UK Statistics Family,Office for National Statistics,21/06/2021,Exp - Purchase Of Goods/Services - Contractors,CLOUD ARCHITECTURE,La International,204017," 3,075.70 ",Information Management Services,SME,Programme Expenditure,,
UK Statistics Family,Office for National Statistics,21/06/2021,Exp - Purchase Of Goods/Services - Contractors,Tech Delivery Data As A Platform,La International,204017," 8,330.09 ",Information Management Services,SME,Programme Expenditure,,
UK Statistics Family,Office for National Statistics,21/06/2021,Exp - Purchase Of Goods/Services - Contractors,Digital Delivery,La International,204017," 12,174.74 ",Information Management Services,SME,Programme Expenditure,,
UK Statistics Family,Office for National Statistics,21/06/2021,Exp - Purchase Of Goods/Services - Contractors,Digital Delivery,La International,204017," 3,591.00 ",Information Management Services,SME,Programme Expenditure,,
UK Statistics Family,Office for National Statistics,21/06/2021,Exp - Short-Term Contract & Agency Staff - Full Cost,Social Survey Transformation Titchfield,La International,204017," 1,791.64 ",Information Management Services,SME,Programme Expenditure,,
UK Statistics Family,Office for National Statistics,21/06/2021,Surveys,Business Outputs And Developments,Iff Research,204022," 65,102.40 ",Statistical Services,Large,Programme Expenditure,,
UK Statistics Family,Office for National Statistics,21/06/2021,Exp - Purchase Of Goods/Services - Contractors,Business Architecture,Talent International,204027," 13,224.00 ",Information Management Services,SME,Programme Expenditure,,
UK Statistics Family,Office for National Statistics,21/06/2021,Exp - Short-Term Contract & Agency Staff - Full Cost,Census CCS Data Collection,Talent International,204027," 3,849.47 ",Information Management Services,SME,Programme Expenditure,,
UK Statistics Family,Office for National Statistics,21/06/2021,Exp - Short-Term Contract & Agency Staff - Full Cost,Census CCS Data Collection,Talent International,204027," 6,777.84 ",Information Management Services,SME,Programme Expenditure,,
UK Statistics Family,Office for National Statistics,21/06/2021,Exp - Purchase Of Goods/Services - Contractors,CLOUD ARCHITECTURE,Talent International,204027," 10,920.00 ",Information Management Services,SME,Programme Expenditure,,
UK Statistics Family,Office for National Statistics,21/06/2021,Exp - Short-Term Contract & Agency Staff - Full Cost,Labour Market,Talent International,204027, 858.96 ,Information Management Services,SME,Programme Expenditure,,
UK Statistics Family,Office for National Statistics,21/06/2021,Exp - Purchase Of Goods/Services - Accommodation & Bldng Management - Miscellaneous Minor Works,Property London,Orange box Limited,204031," 26,152.38 ",Office Furniture,SME,Programme Expenditure,,
UK Statistics Family,Office for National Statistics,21/06/2021,Software Licences At Cost - Additions,Recruitment ,Horsefly Talent Market Analytics.,204032," 26,880.00 ",Recruitment Related Costs,SME,Programme Expenditure,,
UK Statistics Family,Office for National Statistics,22/06/2021,Exp - Short-Term Contract & Agency Staff - Full Cost,Census CCS Data Collection,Parity Resources Limited,204160," 6,832.26 ",Information Management Services,Large,Programme Expenditure,,
UK Statistics Family,Office for National Statistics,22/06/2021,Exp - Purchase Of Goods/Services - Contractors,Census CCS Data Collection,Parity Resources Limited,204160, 660.00 ,Information Management Services,Large,Programme Expenditure,,
UK Statistics Family,Office for National Statistics,22/06/2021,Exp - Purchase Of Goods/Services - Contractors,Programme Delivery,Parity Resources Limited,204160," 1,980.00 ",Information Management Services,Large,Programme Expenditure,,
UK Statistics Family,Office for National Statistics,22/06/2021,Exp - Purchase Of Goods/Services - Contractors,International Trade And Transactions,Parity Resources Limited,204160," 12,175.20 ",Information Management Services,Large,Programme Expenditure,,
UK Statistics Family,Office for National Statistics,22/06/2021,Exp - Short-Term Contract & Agency Staff - Full Cost,Recruitment ,Parity Resources Limited,204160, 732.60 ,Information Management Services,Large,Programme Expenditure,,
UK Statistics Family,Office for National Statistics,22/06/2021,Exp - Purchase Of Goods/Services - Contractors,Business Statistics Transformation,Parity Resources Limited,204160," 6,728.40 ",Information Management Services,Large,Programme Expenditure,,
UK Statistics Family,Office for National Statistics,22/06/2021,EXP - PURCHASE OF GOODS/SERVICES -  NON IT CONTRACTUAL PAYMENTS,Data Collection Service,Good Things Foundation,204163," 260,080.00 ",Census Assisted Digital Services,SME,Programme Expenditure,,
UK Statistics Family,Office for National Statistics,22/06/2021,Exp - Purchase Of Goods/Services - Contractors,Commercial Services,Gardiner & Theobald LLP,204165," 25,800.00 ",Temporary Staff,Large,Programme Expenditure,,
UK Statistics Family,Office for National Statistics,23/06/2021,Telecoms,IT Operations,Vodafone Corporate Ltd,204167," 33,972.02 ",Mobile Device Charges,Large,Programme Expenditure,,
UK Statistics Family,Office for National Statistics,23/06/2021,Exp - Short-Term Contract & Agency Staff - Full Cost,Recruitment ,Malikshaw Interim & Executive,204182, 491.24 ,Information Management Services,SME,Programme Expenditure,,
UK Statistics Family,Office for National Statistics,23/06/2021,Exp - Short-Term Contract & Agency Staff - Full Cost,Recruitment ,Malikshaw Interim & Executive,204182," 3,111.19 ",Information Management Services,SME,Programme Expenditure,,
UK Statistics Family,Office for National Statistics,23/06/2021,Exp - Short-Term Contract & Agency Staff - Full Cost,Recruitment ,Malikshaw Interim & Executive,204182," 3,274.95 ",Information Management Services,SME,Programme Expenditure,,
UK Statistics Family,Office for National Statistics,23/06/2021,Exp - Purchase Of Goods/Services - Contractors,CLOUD ARCHITECTURE,Malikshaw Interim & Executive,204182," 13,680.00 ",Information Management Services,SME,Programme Expenditure,,
UK Statistics Family,Office for National Statistics,23/06/2021,Exp - Purchase Of Goods/Services - Contractors,Digital Delivery,Malikshaw Interim & Executive,204182," 13,680.00 ",Information Management Services,SME,Programme Expenditure,,
UK Statistics Family,Office for National Statistics,23/06/2021,Surveys,International Trade And Transactions,Bureau Van Dijk Electronic Publishing,204183," 32,256.00 ",Statistical Services,SME,Programme Expenditure,,
UK Statistics Family,Office for National Statistics,23/06/2021,EXP - PURCHASE OF GOODS/SERVICES -  NON IT CONTRACTUAL PAYMENTS,Covid Infection Survey,HH Associates Ltd,204184," 109,406.72 ",Print and Post Services,SME,Programme Expenditure,,
UK Statistics Family,Office for National Statistics,23/06/2021,EXP - PURCHASE OF GOODS/SERVICES -  NON IT CONTRACTUAL PAYMENTS,Census CCS Data Collection,Adecco UK Limited,204185," 636,762.00 ",Census People Services Contractual,SME,Programme Expenditure,,
UK Statistics Family,Office for National Statistics,23/06/2021,Marketing & Media,Stakeholder Engagement And Comms,Manning Gottlieb,204186," 380,387.07 ",Marketing Services,Large,Programme Expenditure,,
UK Statistics Family,Office for National Statistics,23/06/2021,Exp - Short-Term Contract & Agency Staff - Full Cost,Census CCS Data Collection,Talent International,204188," 5,778.71 ",Information Management Services,SME,Programme Expenditure,,
UK Statistics Family,Office for National Statistics,23/06/2021,Exp - Short-Term Contract & Agency Staff - Full Cost,Census CCS Data Collection,Talent International,204188," 4,124.93 ",Information Management Services,SME,Programme Expenditure,,
UK Statistics Family,Office for National Statistics,23/06/2021,Exp - Short-Term Contract & Agency Staff - Full Cost,HALE,Talent International,204188," 3,311.56 ",Information Management Services,SME,Programme Expenditure,,
UK Statistics Family,Office for National Statistics,23/06/2021,Exp - Purchase Of Goods/Services - Contractors,MDR Management,Talent International,204188," 12,350.00 ",Information Management Services,SME,Programme Expenditure,,
UK Statistics Family,Office for National Statistics,23/06/2021,Exp - Short-Term Contract & Agency Staff - Full Cost,Social Surveys Division,Talent International,204188," 4,237.54 ",Information Management Services,SME,Programme Expenditure,,
UK Statistics Family,Office for National Statistics,23/06/2021,Exp - Short-Term Contract & Agency Staff - Full Cost,Productivity Research And Professional Development,Parity Resources Limited,204189," 3,409.56 ",Information Management Services,Large,Programme Expenditure,,
UK Statistics Family,Office for National Statistics,23/06/2021,Exp - Purchase Of Goods/Services - Contractors,Productivity Research And Professional Development,Parity Resources Limited,204189," 12,780.00 ",Information Management Services,Large,Programme Expenditure,,
UK Statistics Family,Office for National Statistics,23/06/2021,Exp - Short-Term Contract & Agency Staff - Full Cost,Business Architecture Transformation And Statistical Strategy,Parity Resources Limited,204189, 732.60 ,Information Management Services,Large,Programme Expenditure,,
UK Statistics Family,Office for National Statistics,23/06/2021,Exp - Short-Term Contract & Agency Staff - Full Cost,Business Architecture Transformation And Statistical Strategy,Parity Resources Limited,204189," 3,804.64 ",Information Management Services,Large,Programme Expenditure,,
UK Statistics Family,Office for National Statistics,23/06/2021,Exp - Purchase Of Goods/Services - Contractors ,IT Operations,Parity Resources Limited,204189," 3,006.42 ",Information Management Services,Large,Programme Expenditure,,
UK Statistics Family,Office for National Statistics,23/06/2021,Exp - Short-Term Contract & Agency Staff - Full Cost,Digital Delivery,Parity Resources Limited,204189, 615.96 ,Information Management Services,Large,Programme Expenditure,,
UK Statistics Family,Office for National Statistics,23/06/2021,Exp - Purchase Of Goods/Services - Contractors,Digital Delivery,Parity Resources Limited,204189," 2,058.30 ",Information Management Services,Large,Programme Expenditure,,
UK Statistics Family,Office for National Statistics,23/06/2021,Exp - Purchase Of Goods/Services - Contractors,Digital Delivery,Parity Resources Limited,204189," 3,588.48 ",Information Management Services,Large,Programme Expenditure,,
UK Statistics Family,Office for National Statistics,23/06/2021,Exp - Purchase Of Goods/Services - Contractors,Digital Delivery,Parity Resources Limited,204189," 2,178.72 ",Information Management Services,Large,Programme Expenditure,,
UK Statistics Family,Office for National Statistics,23/06/2021,Exp - Purchase Of Goods/Services - IT Contractual Services,IT Applications,Diegesis Limited,204190," 138,540.00 ",Information Management Services,Large,Programme Expenditure,,
UK Statistics Family,Office for National Statistics,23/06/2021,Exp - Purchase Of Goods/Services - Contractors,Business Architecture,LA FOSSE ASSOCIATES LIMITED,204192," 21,060.00 ",Information Management Services,Large,Programme Expenditure,,
UK Statistics Family,Office for National Statistics,23/06/2021,Exp - Purchase Of Goods/Services - Contractors,Researcher Support And Data Access ,LA FOSSE ASSOCIATES LIMITED,204192," 2,520.00 ",Information Management Services,Large,Programme Expenditure,,
UK Statistics Family,Office for National Statistics,23/06/2021,Exp - Purchase Of Goods/Services - Contractors,Tech Delivery Legacy Sp,LA FOSSE ASSOCIATES LIMITED,204192," 2,880.00 ",Information Management Services,Large,Programme Expenditure,,
UK Statistics Family,Office for National Statistics,23/06/2021,Exp - Purchase Of Goods/Services - Contractors,Data As A Service,LA FOSSE ASSOCIATES LIMITED,204192," 2,880.00 ",Information Management Services,Large,Programme Expenditure,,
UK Statistics Family,Office for National Statistics,23/06/2021,Marketing & Media,Data Collection Service,M&C Saatchi UK Ltd,204194," 144,097.40 ",Marketing Services,Large,Programme Expenditure,,
UK Statistics Family,Office for National Statistics,23/06/2021,Exp - Purchase Of Goods/Services - Contractors,Commercial Services,Gardiner & Theobald LLP,204195," 30,465.00 ",Temporary Staff,Large,Programme Expenditure,,
UK Statistics Family,Office for National Statistics,23/06/2021,Exp - Purchase Of Goods/Services - Contractors,Commercial Services,Gardiner & Theobald LLP,204195," 95,325.00 ",Temporary Staff,Large,Programme Expenditure,,
UK Statistics Family,Office for National Statistics,24/06/2021,Buildings Under Construction,Property Titchfield,Sure Connect Systems Ltd,204361," 120,511.42 ",Buildings Maintenance,Large,Programme Expenditure,,
UK Statistics Family,Office for National Statistics,24/06/2021,Exp - Purchase Of Goods/Services - Contractors,Programme Delivery,Parity Resources Limited,204364," 3,607.41 ",Information Management Services,Large,Programme Expenditure,,
UK Statistics Family,Office for National Statistics,24/06/2021,Exp - Purchase Of Goods/Services - Contractors,Programme Support,Parity Resources Limited,204364," 2,395.04 ",Information Management Services,Large,Programme Expenditure,,
UK Statistics Family,Office for National Statistics,24/06/2021,Exp - Purchase Of Goods/Services - Contractors,Covid Infection Survey,Parity Resources Limited,204364," 2,400.00 ",Information Management Services,Large,Programme Expenditure,,
UK Statistics Family,Office for National Statistics,24/06/2021,Exp - Purchase Of Goods/Services - Contractors,Digital Publishing,Parity Resources Limited,204364," 6,980.40 ",Information Management Services,Large,Programme Expenditure,,
UK Statistics Family,Office for National Statistics,24/06/2021,Exp - Purchase Of Goods/Services - Contractors,Analysis Microdata And Engagement,Parity Resources Limited,204364, 495.88 ,Information Management Services,Large,Programme Expenditure,,
UK Statistics Family,Office for National Statistics,24/06/2021,Exp - Short-Term Contract & Agency Staff - Full Cost,Recruitment ,Parity Resources Limited,204364, 586.08 ,Information Management Services,Large,Programme Expenditure,,
UK Statistics Family,Office for National Statistics,24/06/2021,Exp - Short-Term Contract & Agency Staff - Full Cost,Recruitment ,Parity Resources Limited,204364," 1,172.16 ",Information Management Services,Large,Programme Expenditure,,
UK Statistics Family,Office for National Statistics,24/06/2021,Exp - Short-Term Contract & Agency Staff - Full Cost,Data Architecture,Parity Resources Limited,204364," 1,758.24 ",Information Management Services,Large,Programme Expenditure,,
UK Statistics Family,Office for National Statistics,24/06/2021,Exp - Purchase Of Goods/Services - Contractors,Data Architecture,Parity Resources Limited,204364," 2,874.05 ",Information Management Services,Large,Programme Expenditure,,
UK Statistics Family,Office for National Statistics,24/06/2021,Exp - Purchase Of Goods/Services - Contractors,IT Applications,Parity Resources Limited,204364," 2,723.40 ",Information Management Services,Large,Programme Expenditure,,
UK Statistics Family,Office for National Statistics,24/06/2021,Exp - Short-Term Contract & Agency Staff - Full Cost,Digital Delivery,Parity Resources Limited,204364, 615.96 ,Information Management Services,Large,Programme Expenditure,,
UK Statistics Family,Office for National Statistics,24/06/2021,Exp - Purchase Of Goods/Services - Contractors,Digital Delivery,Parity Resources Limited,204364," 2,744.40 ",Information Management Services,Large,Programme Expenditure,,
UK Statistics Family,Office for National Statistics,24/06/2021,Exp - Purchase Of Goods/Services - Contractors,Digital Delivery,Parity Resources Limited,204364," 2,178.72 ",Information Management Services,Large,Programme Expenditure,,
UK Statistics Family,Office for National Statistics,24/06/2021,Exp - Short-Term Contract & Agency Staff - Full Cost,Survey Processing Centre,Parity Resources Limited,204364, 534.60 ,Information Management Services,Large,Programme Expenditure,,
UK Statistics Family,Office for National Statistics,24/06/2021,FM Contract Payments,Corporate Centre,Vinci Construction UK Limited,204369," 654,626.00 ",Facilities Mangement Services,Large,Programme Expenditure,,
UK Statistics Family,Office for National Statistics,24/06/2021,Travel And Subsistence,Corporate Centre,Corporate Travel Management ,204372," 33,646.51 ",Travel and Accommodation,SME,Programme Expenditure,,
UK Statistics Family,Office for National Statistics,25/06/2021,Telecoms,IT Operations,Bt Global Services,204385," 95,414.47 ",Telecommunications,Large,Programme Expenditure,,
UK Statistics Family,Office for National Statistics,25/06/2021,"ICT Outsourcing, Maintenance And Support",Researcher Support And Data Access ,Equiniti Limited,204388," 144,856.39 ",Software Licenses,Large,Programme Expenditure,,
UK Statistics Family,Office for National Statistics,25/06/2021,Hosting,IT Operations,Equiniti Limited,204388," 49,459.06 ",Software Licenses,Large,Programme Expenditure,,
UK Statistics Family,Office for National Statistics,25/06/2021,Exp - Purchase Of Goods/Services - Contractors,Business Architecture,LA FOSSE ASSOCIATES LIMITED,204398," 31,489.00 ",Information Management Services,Large,Programme Expenditure,,
UK Statistics Family,Office for National Statistics,25/06/2021,Exp - Purchase Of Goods/Services - Contractors,Business Architecture,LA FOSSE ASSOCIATES LIMITED,204398," 6,375.00 ",Information Management Services,Large,Programme Expenditure,,
UK Statistics Family,Office for National Statistics,25/06/2021,Exp - Purchase Of Goods/Services - Contractors,Testing,LA FOSSE ASSOCIATES LIMITED,204398," 3,000.00 ",Information Management Services,Large,Programme Expenditure,,
UK Statistics Family,Office for National Statistics,25/06/2021,Exp - Purchase Of Goods/Services - Contractors,Consultancy Management,LA FOSSE ASSOCIATES LIMITED,204398," 6,450.00 ",Information Management Services,Large,Programme Expenditure,,
UK Statistics Family,Office for National Statistics,25/06/2021,Exp - Purchase Of Goods/Services - Contractors,Covid Infection Survey,LA FOSSE ASSOCIATES LIMITED,204398," 1,100.00 ",Information Management Services,Large,Programme Expenditure,,
UK Statistics Family,Office for National Statistics,25/06/2021,Exp - Purchase Of Goods/Services - Contractors,WIDER SURVEILLANCE STUDIES,LA FOSSE ASSOCIATES LIMITED,204398," 3,000.00 ",Information Management Services,Large,Programme Expenditure,,
UK Statistics Family,Office for National Statistics,25/06/2021,Exp - Purchase Of Goods/Services - Contractors,Digital Publishing,LA FOSSE ASSOCIATES LIMITED,204398," 4,350.00 ",Information Management Services,Large,Programme Expenditure,,
UK Statistics Family,Office for National Statistics,25/06/2021,Exp - Purchase Of Goods/Services - Contractors,Data Architecture,LA FOSSE ASSOCIATES LIMITED,204398," 10,260.00 ",Information Management Services,Large,Programme Expenditure,,
UK Statistics Family,Office for National Statistics,25/06/2021,Exp - Purchase Of Goods/Services - Contractors,Data As A Service,LA FOSSE ASSOCIATES LIMITED,204398," 3,600.00 ",Information Management Services,Large,Programme Expenditure,,
UK Statistics Family,Office for National Statistics,25/06/2021,Marketing & Media,Stakeholder Engagement And Comms,M&C Saatchi UK Ltd,204399," 231,524.75 ",Marketing Services,Large,Programme Expenditure,,
UK Statistics Family,Office for National Statistics,28/06/2021,Postage,Survey Processing Centre,DHL Parcel Ltd,204529," 27,411.66 ",Postage,Large,Programme Expenditure,,
UK Statistics Family,Office for National Statistics,28/06/2021,Exp - Purchase Of Goods/Services - Contractors,Business Architecture,La International,204533," 5,112.30 ",Information Management Services,SME,Programme Expenditure,,
UK Statistics Family,Office for National Statistics,28/06/2021,Exp - Purchase Of Goods/Services - Contractors,Testing,La International,204533," 20,152.18 ",Information Management Services,SME,Programme Expenditure,,
UK Statistics Family,Office for National Statistics,28/06/2021,Exp - Purchase Of Goods/Services - Contractors,Testing,La International,204533," 5,206.25 ",Information Management Services,SME,Programme Expenditure,,
UK Statistics Family,Office for National Statistics,28/06/2021,Exp - Purchase Of Goods/Services - Contractors,HALE,La International,204533," 2,413.75 ",Information Management Services,SME,Programme Expenditure,,
UK Statistics Family,Office for National Statistics,28/06/2021,Exp - Purchase Of Goods/Services - Contractors,Sustainability And Inequalities,La International,204533," 2,525.52 ",Information Management Services,SME,Programme Expenditure,,
UK Statistics Family,Office for National Statistics,28/06/2021,Exp - Purchase Of Goods/Services - Contractors,Data Architecture,La International,204533," 3,524.22 ",Information Management Services,SME,Programme Expenditure,,
UK Statistics Family,Office for National Statistics,28/06/2021,Exp - Purchase Of Goods/Services - Contractors,Data Architecture,La International,204533," 13,199.90 ",Information Management Services,SME,Programme Expenditure,,
UK Statistics Family,Office for National Statistics,28/06/2021,Exp - Purchase Of Goods/Services - Contractors,Data Architecture,La International,204533," 3,524.22 ",Information Management Services,SME,Programme Expenditure,,
UK Statistics Family,Office for National Statistics,28/06/2021,Exp - Purchase Of Goods/Services - Contractors,CLOUD ARCHITECTURE,La International,204533," 3,844.62 ",Information Management Services,SME,Programme Expenditure,,
UK Statistics Family,Office for National Statistics,28/06/2021,Exp - Purchase Of Goods/Services - Contractors,IT Applications,La International,204533," 9,611.58 ",Information Management Services,SME,Programme Expenditure,,
UK Statistics Family,Office for National Statistics,28/06/2021,Exp - Purchase Of Goods/Services - Contractors,Digital Delivery,La International,204533," 1,076.50 ",Information Management Services,SME,Programme Expenditure,,
UK Statistics Family,Office for National Statistics,28/06/2021,Exp - Short-Term Contract & Agency Staff - Full Cost,Social Survey Transformation Titchfield,La International,204533, 420.00 ,Information Management Services,SME,Programme Expenditure,,
UK Statistics Family,Office for National Statistics,28/06/2021,"ICT Outsourcing, Maintenance And Support",Digital Delivery,Mitie Security,204538," 34,375.80 ",Software Licenses,Large,Programme Expenditure,,
UK Statistics Family,Office for National Statistics,28/06/2021,Exp - Purchase Of Goods/Services - IT Contractual Services,Tech Delivery Next Gen IT And Infrastructure,Diegesis Limited,204542," 35,340.00 ",Information Management Services,Large,Programme Expenditure,,
UK Statistics Family,Office for National Statistics,28/06/2021,"ICT Outsourcing, Maintenance And Support",IT Operations,Bloom Procurement Services Ltd,204539," 83,940.35 ",Consultancy,Large,Programme Expenditure,,
UK Statistics Family,Office for National Statistics,29/06/2021,Exp - Purchase Of Goods/Services - IT Contractual Services,Tech Delivery Data As A Platform,Kainos,204637," 28,421.13 ",Information Management Services,Large,Programme Expenditure,,
UK Statistics Family,Office for National Statistics,29/06/2021,Hosting,Tech Delivery Data As A Platform,Kainos,204637," 1,166.27 ",Information Management Services,Large,Programme Expenditure,,
UK Statistics Family,Office for National Statistics,29/06/2021,Exp - Purchase Of Goods/Services - IT Contractual Services,IT Operations,E Synergy Solutions,204638," 115,200.00 ",Information Management Services,SME,Programme Expenditure,,
UK Statistics Family,Office for National Statistics,29/06/2021,Exp - Purchase Of Goods And Services Consultants,Business Architecture Transformation And Statistical Strategy,Concept Information Technology Ltd T/A Concept Resourcing,204641," 8,805.11 ",Information Management Services,Large,Programme Expenditure,,
UK Statistics Family,Office for National Statistics,29/06/2021,Exp - Short-Term Contract & Agency Staff - Full Cost,Public Sector And Households,Concept Information Technology Ltd T/A Concept Resourcing,204641," 4,647.82 ",Information Management Services,Large,Programme Expenditure,,
UK Statistics Family,Office for National Statistics,29/06/2021,Exp - Short-Term Contract & Agency Staff - Full Cost,Public Sector And Households,Concept Information Technology Ltd T/A Concept Resourcing,204641," 4,836.24 ",Information Management Services,Large,Programme Expenditure,,
UK Statistics Family,Office for National Statistics,29/06/2021,Exp - Short-Term Contract & Agency Staff - Full Cost,Survey Management,Concept Information Technology Ltd T/A Concept Resourcing,204641," 2,265.56 ",Information Management Services,Large,Programme Expenditure,,
UK Statistics Family,Office for National Statistics,29/06/2021,Exp - Short-Term Contract & Agency Staff - Full Cost,Prices Division,Concept Information Technology Ltd T/A Concept Resourcing,204641," 10,516.30 ",Information Management Services,Large,Programme Expenditure,,
UK Statistics Family,Office for National Statistics,29/06/2021,Accommodation & Building Management,Interview Management IPS,Heathrow Airport,204644," 44,651.74 ",Rental Charges,Large,Programme Expenditure,,
UK Statistics Family,Office for National Statistics,29/06/2021,Rent Payable,Interview Management IPS,Heathrow Airport,204644," 2,092.27 ",Rental Charges,Large,Programme Expenditure,,
UK Statistics Family,Office for National Statistics,29/06/2021,End User Software And Hardware,IT Operations,Phoenix Software Ltd,204645, 35.68 ,Software Licenses,SME,Programme Expenditure,,
UK Statistics Family,Office for National Statistics,29/06/2021,End User Software And Hardware,IT Operations,Phoenix Software Ltd,204645," 28,370.98 ",Software Licenses,SME,Programme Expenditure,,
UK Statistics Family,Office for National Statistics,29/06/2021,Exp - Purchase Of Goods/Services - Contractors,Business Architecture,La International,204648," 7,048.44 ",Information Management Services,SME,Programme Expenditure,,
UK Statistics Family,Office for National Statistics,29/06/2021,Exp - Purchase Of Goods/Services - Contractors,IT Applications,La International,204648," 20,184.32 ",Information Management Services,SME,Programme Expenditure,,
UK Statistics Family,Office for National Statistics,29/06/2021,Exp - Short-Term Contract & Agency Staff - Full Cost,Social Survey Transformation Titchfield,La International,204648, 856.32 ,Information Management Services,SME,Programme Expenditure,,
UK Statistics Family,Office for National Statistics,29/06/2021,Other Goods And Services,Commercial Services,Dun & Bradstreet Ltd,204651," 3,171.60 ",Subscription Charges,Large,Programme Expenditure,,
UK Statistics Family,Office for National Statistics,29/06/2021,Other Goods And Services,Business Statistics Transformation,Dun & Bradstreet Ltd,204651," 39,000.00 ",Data Acquisition,Large,Programme Expenditure,,
UK Statistics Family,Office for National Statistics,29/06/2021,Exp - Purchase Of Goods And Services Consultants,Consultancy Management,Bloom Procurement Services Ltd,204658," 70,219.15 ",Consultancy,Large,Programme Expenditure,,
UK Statistics Family,Office for National Statistics,29/06/2021,Exp - Short-Term Contract & Agency Staff - Full Cost,HALE,Talent International,204660," 6,050.00 ",Information Management Services,SME,Programme Expenditure,,
UK Statistics Family,Office for National Statistics,29/06/2021,Exp - Purchase Of Goods/Services - Contractors,International Trade And Transactions,Talent International,204660," 9,072.00 ",Information Management Services,SME,Programme Expenditure,,
UK Statistics Family,Office for National Statistics,29/06/2021,Exp - Purchase Of Goods/Services - Contractors,Strategy And Architecture,Talent International,204660," 30,420.00 ",Information Management Services,SME,Programme Expenditure,,
UK Statistics Family,Office for National Statistics,29/06/2021,Exp - Purchase Of Goods/Services - Contractors,Tech Delivery Next Gen IT And Infrastructure,Talent International,204660," 5,400.00 ",Information Management Services,SME,Programme Expenditure,,
UK Statistics Family,Office for National Statistics,29/06/2021,Exp - Short-Term Contract & Agency Staff - Full Cost,Census CCS Data Collection,Parity Resources Limited,204662," 3,066.80 ",Information Management Services,Large,Programme Expenditure,,
UK Statistics Family,Office for National Statistics,29/06/2021,Exp - Short-Term Contract & Agency Staff - Full Cost,Census CCS Data Collection,Parity Resources Limited,204662, 456.76 ,Information Management Services,Large,Programme Expenditure,,
UK Statistics Family,Office for National Statistics,29/06/2021,Exp - Purchase Of Goods/Services - Contractors,Programme Delivery,Parity Resources Limited,204662," 3,310.50 ",Information Management Services,Large,Programme Expenditure,,
UK Statistics Family,Office for National Statistics,29/06/2021,Exp - Purchase Of Goods/Services - Contractors,Programme Support,Parity Resources Limited,204662," 2,993.80 ",Information Management Services,Large,Programme Expenditure,,
UK Statistics Family,Office for National Statistics,29/06/2021,Exp - Purchase Of Goods/Services - Contractors,Covid Infection Survey,Parity Resources Limited,204662," 3,000.00 ",Information Management Services,Large,Programme Expenditure,,
UK Statistics Family,Office for National Statistics,29/06/2021,Exp - Purchase Of Goods/Services - Contractors,Digital Publishing,Parity Resources Limited,204662," 3,490.20 ",Information Management Services,Large,Programme Expenditure,,
UK Statistics Family,Office for National Statistics,29/06/2021,Exp - Purchase Of Goods/Services - Contractors,Analysis Microdata And Engagement,Parity Resources Limited,204662, 658.50 ,Information Management Services,Large,Programme Expenditure,,
UK Statistics Family,Office for National Statistics,29/06/2021,Exp - Short-Term Contract & Agency Staff - Full Cost,Business Architecture Transformation And Statistical Strategy,Parity Resources Limited,204662," 1,001.22 ",Information Management Services,Large,Programme Expenditure,,
UK Statistics Family,Office for National Statistics,29/06/2021,Exp - Short-Term Contract & Agency Staff - Full Cost,Recruitment ,Parity Resources Limited,204662, 732.60 ,Information Management Services,Large,Programme Expenditure,,
UK Statistics Family,Office for National Statistics,29/06/2021,Exp - Short-Term Contract & Agency Staff - Full Cost,Recruitment ,Parity Resources Limited,204662," 1,465.20 ",Information Management Services,Large,Programme Expenditure,,
UK Statistics Family,Office for National Statistics,29/06/2021,Exp - Short-Term Contract & Agency Staff - Full Cost,Data Architecture,Parity Resources Limited,204662," 1,465.20 ",Information Management Services,Large,Programme Expenditure,,
UK Statistics Family,Office for National Statistics,29/06/2021,Exp - Purchase Of Goods/Services - Contractors,Data Architecture,Parity Resources Limited,204662," 2,874.05 ",Information Management Services,Large,Programme Expenditure,,
UK Statistics Family,Office for National Statistics,29/06/2021,Exp - Purchase Of Goods/Services - Contractors,Digital Delivery,Parity Resources Limited,204662," 3,430.50 ",Information Management Services,Large,Programme Expenditure,,
UK Statistics Family,Office for National Statistics,29/06/2021,Exp - Purchase Of Goods/Services - Contractors,Digital Delivery,Parity Resources Limited,204662," 2,723.40 ",Information Management Services,Large,Programme Expenditure,,
UK Statistics Family,Office for National Statistics,29/06/2021,Exp - Short-Term Contract & Agency Staff - Full Cost,Survey Processing Centre,Parity Resources Limited,204662, 732.60 ,Information Management Services,Large,Programme Expenditure,,
UK Statistics Family,Office for National Statistics,29/06/2021,Exp - Purchase Of Goods/Services - IT Contractual Services,Tech Delivery Next Gen IT And Infrastructure,Diegesis Limited,204663," 40,926.00 ",Information Management Services,Large,Programme Expenditure,,
UK Statistics Family,Office for National Statistics,07/06/2021,Exp - Purchase Of Goods/Services - Incentive Payments,Covid Infection Survey,Sodexo Motivation Solutions U.K. ltd,30002807," 971,060.36 ",Survey Response Incentive Vouchers,Large,Programme Expenditure,,
UK Statistics Family,Office for National Statistics,07/06/2021,Exp - Purchase Of Goods/Services - Incentive Payments,Covid Infection Survey,Sodexo Motivation Solutions U.K. ltd,30002808," 110,916.16 ",Survey Response Incentive Vouchers,Large,Programme Expenditure,,
UK Statistics Family,Office for National Statistics,08/06/2021,Exp - Purchase Of Goods/Services - Incentive Payments,Covid Infection Survey,Sodexo Motivation Solutions U.K. ltd,30002812," 133,994.90 ",Survey Response Incentive Vouchers,Large,Programme Expenditure,,
UK Statistics Family,Office for National Statistics,09/06/2021,Exp - Purchase Of Goods And Services Consultants,Data Science Campus,United Nations Foundation,30002813," 60,000.00 ",Information Management Services,SME,Programme Expenditure,,
UK Statistics Family,Office for National Statistics,09/06/2021,Exp - Purchase Of Goods/Services - Incentive Payments,Covid Infection Survey,Sodexo Motivation Solutions U.K. ltd,30002814," 35,147.04 ",Survey Response Incentive Vouchers,Large,Programme Expenditure,,
UK Statistics Family,Office for National Statistics,09/06/2021,Exp - Purchase Of Goods/Services - Incentive Payments,Covid Infection Survey,Sodexo Motivation Solutions U.K. ltd,30002815," 59,279.17 ",Survey Response Incentive Vouchers,Large,Programme Expenditure,,
UK Statistics Family,Office for National Statistics,15/06/2021,Exp - Purchase Of Goods/Services - Incentive Payments,Covid Infection Survey,Sodexo Motivation Solutions U.K. ltd,30002816," 2,962,982.57 ",Survey Response Incentive Vouchers,Large,Programme Expenditure,,
UK Statistics Family,Office for National Statistics,18/06/2021,Exp - Purchase Of Goods/Services - Incentive Payments,Covid Infection Survey,Sodexo Motivation Solutions U.K. ltd,30002821," 2,071,277.68 ",Survey Response Incentive Vouchers,Large,Programme Expenditure,,
UK Statistics Family,Office for National Statistics,18/06/2021,Exp - Purchase Of Goods/Services - Incentive Payments,Covid Infection Survey,Sodexo Motivation Solutions U.K. ltd,30002822," 162,331.86 ",Survey Response Incentive Vouchers,Large,Programme Expenditure,,
UK Statistics Family,Office for National Statistics,18/06/2021,Surveys,Covid Infection Survey,IQVIA Limited,30002823," 25,429,370.40 ",Statistical Services,Large,Programme Expenditure,,
UK Statistics Family,Office for National Statistics,18/06/2021,Surveys,Covid Infection Survey,IQVIA Limited,30002824," 644,519.74 ",Statistical Services,Large,Programme Expenditure,,
UK Statistics Family,Office for National Statistics,23/06/2021,Exp - Purchase Of Goods/Services - Incentive Payments,Covid Infection Survey,Sodexo Motivation Solutions U.K. ltd,30002831," 136,461.73 ",Survey Response Incentive Vouchers,Large,Programme Expenditure,,
UK Statistics Family,Office for National Statistics,28/06/2021,Exp - Purchase Of Goods/Services - Incentive Payments,Covid Infection Survey,Sodexo Motivation Solutions U.K. ltd,30002838," 1,749,057.60 ",Survey Response Incentive Vouchers,Large,Programme Expenditure,,
UK Statistics Family,Office for National Statistics,28/06/2021,Surveys,Covid Infection Survey,IQVIA Limited,30002841," 21,120,000.00 ",Statistical Services,Large,Programme Expenditure,,
UK Statistics Family,Office for National Statistics,28/06/2021,Exp - Purchase Of Goods/Services - Incentive Payments,Covid Infection Survey,Sodexo Motivation Solutions U.K. ltd,30002842," 60,840.00 ",Survey Response Incentive Vouchers,Large,Programme Expenditure,,
UK Statistics Family,Office for National Statistics,30/06/2021,Surveys,Covid Infection Survey,IQVIA Limited,30002843," 10,412,409.38 ",Statistical Services,Large,Programme Expenditure,,
UK Statistics Family,Office for National Statistics,30/06/2021,Exp - Purchase Of Goods/Services - Incentive Payments,Covid Infection Survey,Sodexo Motivation Solutions U.K. ltd,30002845," 65,003.65 ",Survey Response Incentive Vouchers,Large,Programme Expenditure,,
UK Statistics Family,Office for National Statistics,30/06/2021,Exp - Purchase Of Goods/Services - Incentive Payments,Covid Infection Survey,Sodexo Motivation Solutions U.K. ltd,30002846," 47,474.40 ",Survey Response Incentive Vouchers,Large,Programme Expenditure,,
UK Statistics Family,Office for National Statistics,30/06/2021,Surveys,Covid Infection Survey,IQVIA Limited,30002847," 1,311,350.39 ",Statistical Services,Large,Programme Expenditure,,
